Workbook

Sheet Example3
A1: 2017-08-23 | O1: *
A2: m = | B2: 20 | C2: 10 | D2: 5 | O2: *
A3: s = | B3: 0.7 | C3: 0.4 | D3: 0.2 | K3: From 'makecholesky', equal to site | O3: *
A4: R = | B4: 1 | C4: 0.6 | D4: 0.5 | F4: L_c(COV) = | G4: 0.7 | H4: 0 | I4: 0 | J4: L_c = | K4: =makecholesky(B8:D10) -> 0.7 | L4: 0 | M4: 0 | O4: *
A5: (CORR) | B5: =C4 -> 0.6 | C5: 1 | D5: 0.4 | G5: 0.24 | H5: 0.32 | I5: 0 | K5: 0.24 | L5: 0.32 | M5: 0 | O5: *
B6: =D4 -> 0.5 | C6: =D5 -> 0.4 | D6: 1 | G6: 0.1 | H6: 0.025 | I6: =M6 -> 0.171391365 | K6: 0.1 | L6: 0.025 | M6: 0.171391365 | O6: *
F7: Needed (here) | J7: R (CORR) | O7: *
A8: COV = | B8: =$B$3^2 -> 0.49 | C8: =$B$3*$C$3*$C$4 -> 0.168 | D8: =$B$3*$D$3*$D$4 -> 0.07 | F8: L_cT = | G8: =TRANSPOSE(G4:I6) -> 0.7 | H8: 0.24 | I8: 0.1 | J8: verify = | K8: 1 | L8: =CORREL(K18:K2017,L18:L2017) -> 0.6124322642 | M8: =CORREL(K18:K2017,M18:M2017) -> 0.5298786913 | O8: *
B9: =C8 -> 0.168 | C9: =$C$3^2 -> 0.16 | D9: =$C$3*$D$3*$D$5 -> 0.032 | G9: 0 | H9: 0.32 | I9: 0.025 | L9: 1 | M9: =CORREL(L18:L2017,M18:M2017) -> 0.4232785429 | O9: *
B10: =D8 -> 0.07 | C10: =D9 -> 0.032 | D10: =$D$3^2 -> 0.04 | G10: 0 | H10: 0 | I10: 0.171391365 | M10: 1 | O10: *
O11: *
C12: r | F12: g = F-1(r) | I12: d = L_c . g | L12: x = d + m | O12: *
O13: *
A14: Average | B14: =AVERAGE(B18:B2017) -> 0.5065604132 | C14: 0.498809503 | D14: 0.4873886135 | E14: 0.02392319323 | F14: -0.01109483944 | G14: -0.04961155625 | H14: 0.01674623526 | I14: 0.002191217753 | J14: -0.00638804401 | K14: 20.01674624 | L14: 10.00219122 | M14: 4.993611956 | O14: *
A15: Stdev | B15: =STDEV(B18:B2017) -> 0.2890937972 | C15: 0.2930168181 | D15: 0.2854528741 | E15: 1.003456423 | F15: 1.01547958 | G15: 0.9738498354 | H15: 0.7024194962 | I15: 0.4108351167 | J15: 0.198916724 | K15: 0.7024194962 | L15: 0.4108351167 | M15: 0.198916724 | O15: *
O16: *
A17: i | B17: xRand | C17: yRand | D17: zRand | E17: xGauss | F17: yGauss | G17: zGauss | H17: xModif | I17: yModif | J17: zModif | K17: x | L17: y | M17: z | O17: *
A18: 1 | B18: 0.8616411286 | C18: 0.2791909443 | D18: 0.5291902413 | E18: =_xlfn.NORM.S.INV(B18) -> 1.087722248 | F18: =_xlfn.NORM.S.INV(C18) -> -0.5852466397 | G18: 0.07323449465 | H18: =MMULT(E18:G2017,$G$8:$I$10) -> 0.7614055739 | I18: 0.07377441494 | J18: 0.1066928189 | K18: =$B$2+H18 -> 20.76140557 | L18: =$C$2+I18 -> 10.07377441 | M18: =$D$2+J18 -> 5.106692819 | O18: *
A19: =$A18+1 -> 2 | B19: 0.8481401106 | C19: 0.8050496576 | D19: 0.4185036513 | E19: =_xlfn.NORM.S.INV(B19) -> 1.028489178 | F19: =_xlfn.NORM.S.INV(C19) -> 0.859797487 | G19: =_xlfn.NORM.S.INV(D19) -> -0.2057229856 | H19: 0.7199424248 | I19: 0.5219725986 | J19: 0.08908471169 | K19: =$B$2+H19 -> 20.71994242 | L19: =$C$2+I19 -> 10.5219726 | M19: =$D$2+J19 -> 5.089084712
A20: =$A19+1 -> 3 | B20: 0.2846679582 | C20: 0.7468777617 | D20: 0.09082123189 | E20: -0.5690298006 | F20: 0.6646967443 | G20: -1.335714941 | H20: -0.3983208604 | I20: 0.07613580605 | J20: -0.2692155685 | K20: 19.60167914 | L20: 10.07613581 | M20: 4.730784431
A21: 4 | B21: 0.8214444827 | C21: 0.1103753854 | D21: 0.2379013611 | E21: 0.92088392 | F21: -1.224534206 | G21: -0.7130695476 | H21: 0.644618744 | I21: -0.170838805 | J21: -0.06073892625 | K21: 20.64461874 | L21: 9.829161195 | M21: 4.939261074
A22: 5 | B22: 0.5335722926 | C22: 0.2795176165 | D22: 0.1157346494 | E22: 0.08425283057 | F22: -0.5842751133 | G22: -1.196582567 | H22: 0.0589769814 | I22: -0.1667473569 | J22: -0.2112655143 | K22: 20.05897698 | L22: 9.833252643 | M22: 4.788734486
A23: 6 | B23: 0.7319719188 | C23: 0.8839649207 | D23: 0.6603562587 | E23: 0.6187877969 | F23: 1.195043183 | G23: 0.4134356188 | H23: 0.4331514578 | I23: 0.5309228899 | J23: 0.1626141543 | K23: 20.43315146 | L23: 10.53092289 | M23: 5.162614154
A24: 7 | B24: 0.9145841059 | C24: 0.357224417 | D24: 0.8627396724 | E24: 1.369536005 | F24: -0.3658877548 | G24: 1.092711122 | H24: 0.9586752034 | I24: 0.2116045596 | J24: 0.3150876573 | K24: 20.9586752 | L24: 10.21160456 | M24: 5.315087657
A25: 8 | B25: 0.9531744406 | C25: 0.3358272523 | D25: 0.1108585661 | E25: 1.676444703 | F25: -0.4238783904 | G25: -1.221974865 | H25: 1.173511292 | I25: 0.2667056439 | J25: -0.05238842958 | K25: 21.17351129 | L25: 10.26670564 | M25: 4.94761157
A26: 9 | B26: 0.1496326235 | C26: 0.389807304 | D26: 0.9691002587 | E26: -1.038010327 | F26: -0.2798213017 | G26: 1.867731665 | H26: -0.7266072292 | I26: -0.3386652951 | J26: 0.2093165142 | K26: 19.27339277 | L26: 9.661334705 | M26: 5.209316514
A27: 10 | B27: 0.176986929 | C27: 0.6035693516 | D27: 0.9825552224 | E27: -0.9269088574 | F27: 0.2625968907 | G27: 2.109637924 | H27: -0.6488362001 | I27: -0.1384271208 | J27: 0.2754477599 | K27: 19.3511638 | L27: 9.861572879 | M27: 5.27544776
A28: 11 | B28: 0.7245906876 | C28: 0.8841216565 | D28: 0.2878816063 | E28: 0.5965338839 | F28: 1.195845934 | G28: -0.5595840121 | H28: 0.4175737187 | I28: 0.5258388309 | J28: -0.00635833094 | K28: 20.41757372 | L28: 10.52583883 | M28: 4.993641669
A29: 12 | B29: 0.1840983127 | C29: 0.4050480107 | D29: 0.935062743 | E29: -0.8998564937 | F29: -0.240302159 | G29: 1.514596914 | H29: -0.6298995456 | I29: -0.2928622494 | J29: 0.1635956293 | K29: 19.37010045 | L29: 9.707137751 | M29: 5.163595629
A30: 13 | B30: 0.7557158025 | C30: 0.414811565 | D30: 0.3501710112 | E30: 0.6925875987 | F30: -0.2151849427 | G30: -0.3848588129 | H30: 0.4848113191 | I30: 0.09736184203 | J30: -0.002082340971 | K30: 20.48481132 | L30: 10.09736184 | M30: 4.997917659
A31: 14 | B31: 0.3285408905 | C31: 0.6676276448 | D31: 0.7453553949 | E31: -0.4439457855 | F31: 0.4333717636 | G31: 0.6599448671 | H31: -0.3107620499 | I31: 0.03213197582 | J31: 0.07954856715 | K31: 19.68923795 | L31: 10.03213198 | M31: 5.079548567
A32: 15 | B32: 0.107749851 | C32: 0.03249917656 | D32: 0.851877045 | E32: -1.238583715 | F32: -1.845269444 | G32: 1.044517753 | H32: -0.8670086006 | I32: -0.8877463136 | J32: 0.009031215866 | K32: 19.1329914 | L32: 9.112253686 | M32: 5.009031216
A33: 16 | B33: 0.8809655321 | C33: 0.9004193022 | D33: 0.1446679121 | E33: 1.179827233 | F33: 1.283944442 | G33: -1.059579763 | H33: 0.8258790631 | I33: 0.6940207573 | J33: -0.03152148756 | K33: 20.82587906 | L33: 10.69402076 | M33: 4.968478512
A34: 17 | B34: 0.08717780017 | C34: 0.6266527286 | D34: 0.6966032942 | E34: -1.358340703 | F34: 0.3230009234 | G34: 0.5146560196 | H34: -0.9508384923 | I34: -0.2226414733 | J34: -0.03955144953 | K34: 19.04916151 | L34: 9.777358527 | M34: 4.96044855
A35: 18 | B35: 0.5935443628 | C35: 0.11962899 | D35: 0.7940944349 | E35: 0.2366719797 | F35: -1.176843491 | G35: 0.8207106024 | H35: 0.1656703858 | I35: -0.3197886421 | J35: 0.1349088211 | K35: 20.16567039 | L35: 9.680211358 | M35: 5.134908821
A36: 19 | B36: 0.03334957753 | C36: 0.1086509581 | D36: 0.7359895171 | E36: -1.83369585 | F36: -1.233734332 | G36: 0.631029913 | H36: -1.283587095 | I36: -0.8348819903 | J36: -0.1060598651 | K36: 18.71641291 | L36: 9.16511801 | M36: 4.893940135
A37: 20 | B37: 0.3659560654 | C37: 0.6560442477 | D37: 0.2926047583 | E37: -0.3425830828 | F37: 0.4016909244 | G37: -0.5457911365 | H37: -0.239808158 | I37: 0.04632115593 | J37: -0.1177599231 | K37: 19.76019184 | L37: 10.04632116 | M37: 4.882240077
A38: 21 | B38: 0.5220205714 | C38: 0.7213368913 | D38: 0.0433745687 | E38: 0.05522544557 | F38: 0.5868175967 | G38: -1.712801102 | H38: 0.0386578119 | I38: 0.2010357379 | J38: -0.2733663343 | K38: 20.03865781 | L38: 10.20103574 | M38: 4.726633666
A39: 22 | B39: 0.3718210772 | C39: 0.6530590778 | D39: 0.1290151037 | E39: -0.32703402 | F39: 0.3935926015 | G39: -1.131059123 | H39: -0.228923814 | I39: 0.04746146768 | J39: -0.216717354 | K39: 19.77107619 | L39: 10.04746147 | M39: 4.783282646
A40: 23 | B40: 0.7375392696 | C40: 0.5441345963 | D40: 0.114206428 | E40: 0.6357774907 | F40: 0.1108556594 | G40: -1.204457353 | H40: 0.4450442435 | I40: 0.1880604088 | J40: -0.1400844493 | K40: 20.44504424 | L40: 10.18806041 | M40: 4.859915551
A41: 24 | B41: 0.4766903358 | C41: 0.3463487478 | D41: 0.3685304444 | E41: -0.05846194804 | F41: -0.3951970147 | G41: -0.3357480229 | H41: -0.04092336362 | I41: -0.1404939122 | J41: -0.07327043211 | K41: 19.95907664 | L41: 9.859506088 | M41: 4.926729568
A42: 25 | B42: 0.6923980907 | C42: 0.3817319737 | D42: 0.3878774935 | E42: 0.5026593152 | F42: -0.3009351484 | G42: -0.2848553212 | H42: 0.3518615206 | I42: 0.02433898817 | J42: -0.006079189516 | K42: 20.35186152 | L42: 10.02433899 | M42: 4.99392081
A43: 26 | B43: 0.6374332138 | C43: 0.1377704497 | D43: 0.7522894822 | E43: 0.3516062566 | F43: -1.090391103 | G43: 0.6817120671 | H43: 0.2461243796 | I43: -0.2645396513 | J43: 0.1247404098 | K43: 20.24612438 | L43: 9.735460349 | M43: 5.12474041
A44: 27 | B44: 0.2826303246 | C44: 0.9830291404 | D44: 0.2025020502 | E44: -0.5750453168 | F44: 2.120763388 | G44: -0.8327174505 | H44: -0.4025317217 | I44: 0.5406334083 | J44: -0.1472060275 | K44: 19.59746828 | L44: 10.54063341 | M44: 4.852793973
A45: 28 | B45: 0.9561679668 | C45: 0.1518659526 | D45: 0.4472879759 | E45: 1.707850606 | F45: -1.028463386 | G45: -0.1325162741 | H45: 1.195495424 | I45: 0.08077586169 | J45: 0.1223613308 | K45: 21.19549542 | L45: 10.08077586 | M45: 5.122361331
A46: 29 | B46: 0.6584466693 | C46: 0.01666828638 | D46: 0.7052834265 | E46: 0.4082274987 | F46: -2.128006161 | G46: 0.5396576559 | H46: 0.2857592491 | I46: -0.5829873719 | J46: 0.08011525813 | K46: 20.28575925 | L46: 9.417012628 | M46: 5.080115258
A47: 30 | B47: 0.1118704258 | C47: 0.912238201 | D47: 0.6809886168 | E47: -1.216640959 | F47: 1.354667246 | G47: 0.4704650951 | H47: -0.8516486716 | I47: 0.1414996883 | J47: -0.007163759956 | K47: 19.14835133 | L47: 10.14149969 | M47: 4.99283624
A48: 31 | B48: 0.7940840006 | C48: 0.9553379743 | D48: 0.5004176359 | E48: 0.8206739747 | F48: 1.698974165 | G48: 0.001046858182 | H48: 0.5744717823 | I48: 0.7406334868 | J48: 0.1247211741 | K48: 20.57447178 | L48: 10.74063349 | M48: 5.124721174
A49: 32 | B49: 0.4865035361 | C49: 0.5537941702 | D49: 0.4599494284 | E49: -0.03383707388 | F49: 0.1352532333 | G49: -0.1005611264 | H49: -0.02368595172 | I49: 0.03516013692 | J49: -0.01723768528 | K49: 19.97631405 | L49: 10.03516014 | M49: 4.982762315
A50: 33 | B50: 0.2653515825 | C50: 0.7763855832 | D50: 0.8698513505 | E50: -0.6269329843 | F50: 0.7600430816 | G50: 1.125688722 | H50: -0.438853089 | I50: 0.09274986987 | J50: 0.1492411053 | K50: 19.56114691 | L50: 10.09274987 | M50: 5.149241105
A51: 34 | B51: 0.01609013738 | C51: 0.06087893278 | D51: 0.4752464292 | E51: -2.142164156 | F51: -1.547437164 | G51: -0.06208786775 | H51: -1.499514909 | I51: -1.00929929 | J51: -0.2635436691 | K51: 18.50048509 | L51: 8.99070071 | M51: 4.736456331
A52: 35 | B52: 0.7005098 | C52: 0.235144271 | D52: 0.9947341458 | E52: 0.5258673148 | F52: -0.7220096541 | G52: 2.557864621 | H52: 0.3681071204 | I52: -0.1048349338 | J52: 0.4729323991 | K52: 20.36810712 | L52: 9.895165066 | M52: 5.472932399
A53: 36 | B53: 0.07247637112 | C53: 0.6809807814 | D53: 0.4248182 | E53: -1.457593065 | F53: 0.4704431564 | G53: -0.1895823742 | H53: -1.020315146 | I53: -0.1992805256 | J53: -0.1664910095 | K53: 18.97968485 | L53: 9.800719474 | M53: 4.83350899
A54: 37 | B54: 0.9937099109 | C54: 0.7018497723 | D54: 0.9716215572 | E54: 2.495437878 | F54: 0.5297281098 | G54: 1.905178395 | H54: 1.746806514 | I54: 0.7684180858 | J54: 0.5893181163 | K54: 21.74680651 | L54: 10.76841809 | M54: 5.589318116
A55: 38 | B55: 0.3985945318 | C55: 0.6498232455 | D55: 0.7372430535 | E55: -0.2569866697 | F55: 0.3848433099 | G55: 0.6348689444 | H55: -0.1798906688 | I55: 0.06147305844 | J55: 0.09273347075 | K55: 19.82010933 | L55: 10.06147306 | M55: 5.092733471
A56: 39 | B56: 0.06600830116 | C56: 0.2794931427 | D56: 0.7704387288 | E56: -1.506197027 | F56: -0.5843478795 | G56: 0.7402924809 | H56: -1.054337919 | I56: -0.548478608 | J56: -0.03834866091 | K56: 18.94566208 | L56: 9.451521392 | M56: 4.961651339
A57: 40 | B57: 0.8840567746 | C57: 0.8113784292 | D57: 0.8189773457 | E57: 1.195513536 | F57: 0.8829872846 | G57: 0.911474703 | H57: 0.8368594754 | I57: 0.5694791798 | J57: 0.2978449293 | K57: 20.83685948 | L57: 10.56947918 | M57: 5.297844929
A58: 41 | B58: 0.2604084059 | C58: 0.4216044792 | D58: 0.6958162354 | E58: -0.6420868218 | F58: -0.1977905265 | G58: 0.5124050902 | H58: -0.4494607753 | I58: -0.2173938057 | J58: 0.0186683625 | K58: 19.55053922 | L58: 9.782606194 | M58: 5.018668363
A59: 42 | B59: 0.9496117106 | C59: 0.03046089602 | D59: 0.5333939989 | E59: 1.641100385 | F59: -1.874062639 | G59: 0.08380433393 | H59: 1.14877027 | I59: -0.205835952 | J59: 0.1316218117 | K59: 21.14877027 | L59: 9.794164048 | M59: 5.131621812
A60: 43 | B60: 0.4362470559 | C60: 0.6551625273 | D60: 0.5100937781 | E60: -0.1604912526 | F60: 0.399296229 | G60: 0.02530404975 | H60: -0.1123438768 | I60: 0.08925689265 | J60: -0.00172982391 | K60: 19.88765612 | L60: 10.08925689 | M60: 4.998270176
A61: 44 | B61: 0.6455132126 | C61: 0.9333321412 | D61: 0.7682051842 | E61: 0.3732349652 | F61: 1.501076727 | G61: 0.7329488425 | H61: 0.2612644757 | I61: 0.5699209442 | J61: 0.2004715173 | K61: 20.26126448 | L61: 10.56992094 | M61: 5.200471517
A62: 45 | B62: 0.02300776181 | C62: 0.7351691539 | D62: 0.9303065336 | E62: -1.995250886 | F62: 0.62852253 | G62: 1.478077885 | H62: -1.39667562 | I62: -0.2777330031 | J62: 0.06951776087 | K62: 18.60332438 | L62: 9.722266997 | M62: 5.069517761
A63: 46 | B63: 0.4486674508 | C63: 0.7564308959 | D63: 0.2075213488 | E63: -0.1290287477 | F63: 0.6948677131 | G63: -0.8150517344 | H63: -0.09032012338 | I63: 0.1913907688 | J63: -0.1352240113 | K63: 19.90967988 | L63: 10.19139077 | M63: 4.864775989
A64: 47 | B64: 0.3589993586 | C64: 0.6742067576 | D64: 0.2836979509 | E64: -0.3611347496 | F64: 0.4515593155 | G64: -0.5718908817 | H64: -0.2527943247 | I64: 0.05782664106 | J64: -0.1228416509 | K64: 19.74720568 | L64: 10.05782664 | M64: 4.877158349
A65: 48 | B65: 0.3581026604 | C65: 0.8780636461 | D65: 0.5015118843 | E65: -0.3635349353 | F65: 1.165361467 | G65: 0.003789740942 | H65: -0.2544744547 | I65: 0.2856672851 | J65: -0.006569927968 | K65: 19.74552555 | L65: 10.28566729 | M65: 4.993430072
A66: 49 | B66: 0.3182080409 | C66: 0.512291199 | D66: 0.5051361387 | E66: -0.4727156189 | F66: 0.03081434272 | G66: 0.01287474604 | H66: -0.3309009333 | I66: -0.1035911589 | J66: -0.04429458303 | K66: 19.66909907 | L66: 9.896408841 | M66: 4.955705417
A67: 50 | B67: 0.1725357833 | C67: 0.003116238089 | D67: 0.09008827982 | E67: -0.9441919531 | F67: -2.735293055 | G67: -1.340211605 | H67: -0.6609343672 | I67: -1.101899846 | J67: -0.3925022181 | K67: 19.33906563 | L67: 8.898100154 | M67: 4.607497782
A68: 51 | B68: 0.04182865142 | C68: 0.7196383294 | D68: 0.1246396978 | E68: -1.729848745 | F68: 0.581767436 | G68: -1.15210143 | H68: -1.210894121 | I68: -0.2289981192 | J68: -0.3559009253 | K68: 18.78910588 | L68: 9.771001881 | M68: 4.644099075
A69: 52 | B69: 0.1466007571 | C69: 0.3748179939 | D69: 0.9740190781 | E69: -1.05112428 | F69: -0.3191193805 | G69: 1.943449728 | H69: -0.7357869957 | I69: -0.3543880289 | J69: 0.2200000893 | K69: 19.264213 | L69: 9.645611971 | M69: 5.220000089
A70: 53 | B70: 0.6779825588 | C70: 0.02251402621 | D70: 0.158557288 | E70: 0.4620647573 | F70: -2.00439231 | G70: -1.000404949 | H70: 0.3234453301 | I70: -0.5305099975 | J70: -0.1753641018 | K70: 20.32344533 | L70: 9.469490003 | M70: 4.824635898
A71: 54 | B71: 0.8422876809 | C71: 0.482979059 | D71: 0.6904585173 | E71: 1.003904519 | F71: -0.04267812433 | G71: 0.4971504427 | H71: 0.7027331632 | I71: 0.2272800847 | J71: 0.1845307918 | K71: 20.70273316 | L71: 10.22728008 | M71: 5.184530792
A72: 55 | B72: 0.3646300307 | C72: 0.4950733404 | D72: 0.400385424 | E72: -0.3461099828 | F72: -0.01234961811 | G72: -0.2523496065 | H72: -0.2422769879 | I72: -0.08701827366 | J72: -0.07817028224 | K72: 19.75772301 | L72: 9.912981726 | M72: 4.921829718
A73: 56 | B73: 0.8394752974 | C73: 0.9268280113 | D73: 0.3934669918 | E73: 0.9923036874 | F73: 1.452567132 | G73: -0.2702941265 | H73: 0.6946125812 | I73: 0.7029743673 | J73: 0.08921846774 | K73: 20.69461258 | L73: 10.70297437 | M73: 5.089218468
A74: 57 | B74: 0.6150910867 | C74: 0.3115055558 | D74: 0.2051431549 | E74: 0.2926131954 | F74: -0.4915873166 | G74: -0.823389891 | H74: 0.2048292368 | I74: -0.0870807744 | J74: -0.1241502807 | K74: 20.20482924 | L74: 9.912919226 | M74: 4.875849719
A75: 58 | B75: 0.6385923039 | C75: 0.5584332158 | D75: 0.2904169791 | E75: 0.3546986102 | F75: 0.1469980388 | G75: -0.5521669755 | H75: 0.2482890271 | I75: 0.1321670389 | J75: -0.05549183966 | K75: 20.24828903 | L75: 10.13216704 | M75: 4.94450816
A76: 59 | B76: 0.3058746996 | C76: 0.9902877101 | D76: 0.7632000588 | E76: -0.5075778906 | F76: 2.337280961 | G76: 0.7166341251 | H76: -0.3553045234 | I76: 0.6261112137 | J76: 0.1304991359 | K76: 19.64469548 | L76: 10.62611121 | M76: 5.130499136
A77: 60 | B77: 0.4369359788 | C77: 0.7869734204 | D77: 0.7037813137 | E77: -0.1587422397 | F77: 0.7959636576 | G77: 0.5353073097 | H77: -0.1111195678 | I77: 0.2166102329 | J77: 0.09577191797 | K77: 19.88888043 | L77: 10.21661023 | M77: 5.095771918
A78: 61 | B78: 0.4245950656 | C78: 0.643162235 | D78: 0.2527167635 | E78: -0.1901518621 | F78: 0.3669242396 | G78: -0.665964914 | H78: -0.1331063035 | I78: 0.07177930975 | J78: -0.1239827159 | K78: 19.8668937 | L78: 10.07177931 | M78: 4.876017284
A79: 62 | B79: 0.1261557351 | C79: 0.9415889012 | D79: 0.8349552729 | E79: -1.144753047 | F79: 1.568252581 | G79: 0.973933711 | H79: -0.8013271329 | I79: 0.2271000948 | J79: 0.09165483799 | K79: 19.19867287 | L79: 10.22710009 | M79: 5.091654838
A80: 63 | B80: 0.06524961965 | C80: 0.5905243028 | D80: 0.7118902551 | E80: -1.512136114 | F80: 0.2288938839 | G80: 0.5589153545 | H80: -1.05849528 | I80: -0.2896666245 | J80: -0.04969799875 | K80: 18.94150472 | L80: 9.710333376 | M80: 4.950302001
A81: 64 | B81: 0.1311447287 | C81: 0.386660152 | D81: 0.1051030197 | E81: -1.120996253 | F81: -0.288034534 | G81: -1.252999086 | H81: -0.7846973771 | I81: -0.3612101516 | J81: -0.3340537124 | K81: 19.21530262 | L81: 9.638789848 | M81: 4.665946288
A82: 65 | B82: 0.4555543187 | C82: 0.352763478 | D82: 0.6906651647 | E82: -0.1116402743 | F82: -0.3778702875 | G82: 0.4977366524 | H82: -0.07814819204 | I82: -0.1477121578 | J82: 0.06469697964 | K82: 19.92185181 | L82: 9.852287842 | M82: 5.06469698
A83: 66 | B83: 0.7571689914 | C83: 0.5189095698 | D83: 0.8244906807 | E83: =_xlfn.NORM.S.INV(B83) -> 0.6972249659 | F83: =_xlfn.NORM.S.INV(C83) -> 0.04741702476 | G83: =_xlfn.NORM.S.INV(D83) -> 0.932615285 | H83: 0.4880574761 | I83: 0.1825074397 | J83: 0.2307501289 | K83: =$B$2+H83 -> 20.48805748 | L83: =$C$2+I83 -> 10.18250744 | M83: =$D$2+J83 -> 5.230750129
A84: =$A83+1 -> 67 | B84: 0.6248599623 | C84: 0.7492844129 | D84: 0.441635511 | E84: 0.3182700833 | F84: 0.6722396006 | G84: -0.1468238969 | H84: 0.2227890583 | I84: 0.2915014922 | J84: 0.02346865024 | K84: 20.22278906 | L84: 10.29150149 | M84: 5.02346865
A85: 68 | B85: 0.7183655389 | C85: 0.08213298923 | D85: 0.07055332022 | E85: 0.577992886 | F85: -1.390866284 | G85: -1.471682482 | H85: 0.4045950202 | I85: -0.3063589183 | J85: -0.2292060379 | K85: 20.40459502 | L85: 9.693641082 | M85: 4.770793962
A86: 69 | B86: 0.9424691194 | C86: 0.5506236667 | D86: 0.5464776641 | E86: 1.575843992 | F86: 0.1272371958 | G86: 0.1167670294 | H86: 1.103090794 | I86: 0.4189184607 | J86: 0.1807781896 | K86: 21.10309079 | L86: 10.41891846 | M86: 5.18077819
A87: 70 | B87: 0.6933479163 | C87: 0.4976705401 | D87: 0.2832692121 | E87: 0.505362621 | F87: -0.005839123119 | G87: -0.5731569586 | H87: 0.3537538347 | I87: 0.1194185096 | J87: -0.04784386948 | K87: 20.35375383 | L87: 10.11941851 | M87: 4.952156131
A88: 71 | B88: 0.6532192717 | C88: 0.3788537074 | D88: 0.8113954208 | E88: 0.3940265242 | F88: -0.3084927516 | G88: 0.883050183 | H88: 0.275818567 | I88: -0.004151314688 | J88: 0.1830375099 | K88: 20.27581857 | L88: 9.995848685 | M88: 5.18303751
A89: 72 | B89: 0.673031312 | C89: 0.2103593321 | D89: 0.1064358869 | E89: 0.448299064 | F89: -0.8051750634 | G89: -1.245707569 | H89: 0.3138093448 | I89: -0.1500642449 | J89: -0.1888029909 | K89: 20.31380934 | L89: 9.849935755 | M89: 4.811197009
A90: 73 | B90: 0.4539220532 | C90: 0.4866636784 | D90: 0.1910861203 | E90: -0.115758292 | F90: -0.03343542943 | G90: -0.8739008706 | H90: -0.08103080443 | I90: -0.03848132751 | J90: -0.162190778 | K90: 19.9189692 | L90: 9.961518672 | M90: 4.837809222
A91: 74 | B91: 0.4840777681 | C91: 0.5794027817 | D91: 0.368991516 | E91: -0.0399217183 | F91: 0.2003658872 | G91: -0.3345255264 | H91: -0.02794520281 | I91: 0.05453587151 | J91: -0.05631781124 | K91: 19.9720548 | L91: 10.05453587 | M91: 4.943682189
A92: 75 | B92: 0.7391492005 | C92: 0.4588049537 | D92: 0.5543655166 | E92: 0.6407246451 | F92: -0.1034448633 | G92: 0.1366986877 | H92: 0.4485072516 | I92: 0.1206715586 | J92: 0.08491531762 | K92: 20.44850725 | L92: 10.12067156 | M92: 5.084915318
A93: 76 | B93: 0.2115598502 | C93: 0.7963888388 | D93: 0.6639060839 | E93: -0.8010206343 | F93: 0.828791635 | G93: 0.4231472476 | H93: -0.560714444 | I93: 0.07296837096 | J93: 0.01314151181 | K93: 19.43928556 | L93: 10.07296837 | M93: 5.013141512
A94: 77 | B94: 0.4039142232 | C94: 0.4192113651 | D94: 0.3087762098 | E94: -0.2432284269 | F94: -0.2039114078 | G94: -0.4993221979 | H94: -0.1702598988 | I94: -0.1236264729 | J94: -0.115000141 | K94: 19.8297401 | L94: 9.876373527 | M94: 4.884999859
A95: 78 | B95: 0.606606366 | C95: 0.07326936601 | D95: 0.2330118817 | E95: 0.2704848535 | F95: -1.451866489 | G95: -0.7289638701 | H95: 0.1893393974 | I95: -0.3996809116 | J95: -0.1341862896 | K95: 20.1893394 | L95: 9.600319088 | M95: 4.86581371
A96: 79 | B96: 0.03347792996 | C96: 0.6629616039 | D96: 0.8005408449 | E96: -1.831970204 | F96: 0.4205594734 | G96: 0.8435546588 | H96: -1.282379143 | I96: -0.3050938175 | J96: -0.02810504914 | K96: 18.71762086 | L96: 9.694906183 | M96: 4.971894951
A97: 80 | B97: 0.794533919 | C97: 0.5995134554 | D97: 0.1648871178 | E97: 0.8222543324 | F97: 0.252087943 | G97: -0.9745687206 | H97: 0.5755780327 | I97: 0.2780091815 | J97: -0.07850503151 | K97: 20.57557803 | L97: 10.27800918 | M97: 4.921494968
A98: 81 | B98: 0.4293003053 | C98: 0.0357222757 | D98: 0.6888698112 | E98: -0.178155813 | F98: -1.802641396 | G98: 0.4926493418 | H98: -0.1247090691 | I98: -0.6196026418 | J98: 0.02155422697 | K98: 19.87529093 | L98: 9.380397358 | M98: 5.021554227
A99: 82 | B99: 0.7808128019 | C99: 0.3940734796 | D99: 0.9041973545 | E99: 0.7749412156 | F99: -0.2687176622 | G99: 1.305844949 | H99: 0.5424588509 | I99: 0.09999623986 | J99: 0.2945867282 | K99: 20.54245885 | L99: 10.09999624 | M99: 5.294586728
A100: 83 | B100: 0.149437417 | C100: 0.4959273695 | D100: 0.1248680448 | E100: -1.038849289 | F100: -0.0102087482 | G100: -1.150990632 | H100: -0.7271945023 | I100: -0.2525906288 | J100: -0.3014100031 | K100: 19.2728055 | L100: 9.747409371 | M100: 4.698589997
A101: 84 | B101: 0.7681906322 | C101: 0.523907884 | D101: 0.1355860609 | E101: 0.7329011271 | F101: 0.05996409399 | G101: -1.100367296 | H101: 0.5130307889 | I101: 0.1950847806 | J101: -0.1138042378 | K101: 20.51303079 | L101: 10.19508478 | M101: 4.886195762
A102: 85 | B102: 0.6736736772 | C102: 0.6661826927 | D102: 0.9009728541 | E102: 0.4500801548 | F102: 0.4293966178 | G102: 1.287114759 | H102: 0.3150561084 | I102: 0.2454261549 | J102: 0.2763432864 | K102: 20.31505611 | L102: 10.24542615 | M102: 5.276343286
A103: 86 | B103: 0.9842242746 | C103: 0.7442687441 | D103: 0.8658462825 | E103: 2.150047588 | F103: 0.6565621208 | G103: 1.106968761 | H103: 1.505033312 | I103: 0.7261112999 | J103: 0.4211436988 | K103: 21.50503331 | L103: 10.7261113 | M103: 5.421143699
A104: 87 | B104: 0.1380744233 | C104: 0.0229403916 | D104: 0.8734366946 | E104: -1.089011427 | F104: -1.996488436 | G104: 1.142788027 | H104: -0.7623079988 | I104: -0.9002390421 | J104: 0.03705064635 | K104: 19.237692 | L104: 9.099760958 | M104: 5.037050646
A105: 88 | B105: 0.7663668977 | C105: 0.7626738974 | D105: 0.9344001212 | E105: 0.7269342992 | F105: 0.7149301508 | G105: 1.50938761 | H105: 0.5088540094 | I105: 0.4032418801 | J105: 0.3492626865 | K105: 20.50885401 | L105: 10.40324188 | M105: 5.349262686
A106: 89 | B106: 0.5294471294 | C106: 0.8923508046 | D106: 0.8095484264 | E106: 0.07388016195 | F106: 1.239127212 | G106: 0.8762334284 | H106: 0.05171611337 | I106: 0.4142519468 | J106: 0.1885450399 | K106: 20.05171611 | L106: 10.41425195 | M106: 5.18854504
A107: 90 | B107: 0.09729270924 | C107: 0.182606956 | D107: 0.6852926173 | E107: -1.29713303 | F107: -0.9054747856 | G107: 0.4825507362 | H107: -0.907993121 | I107: -0.6010638586 | J107: -0.06964514327 | K107: 19.09200688 | L107: 9.398936141 | M107: 4.930354857
A108: 91 | B108: 0.6419706911 | C108: 0.2682005202 | D108: 0.9421923382 | E108: 0.3637313672 | F108: -0.6182644369 | G108: 1.57344712 | H108: 0.254611957 | I108: -0.1105490917 | J108: 0.2905917754 | K108: 20.25461196 | L108: 9.889450908 | M108: 5.290591775
A109: 92 | B109: 0.7257010479 | C109: 0.8136533062 | D109: 0.6986112622 | E109: 0.5998624578 | F109: 0.8914395879 | G109: 0.5204105253 | H109: 0.4199037204 | I109: 0.429227658 | J109: 0.1714661058 | K109: 20.41990372 | L109: 10.42922766 | M109: 5.171466106
A110: 93 | B110: 0.42969283 | C110: 0.5003372856 | D110: 0.002008409811 | E110: -0.1771562492 | F110: 0.0008454496619 | G110: -2.876837836 | H110: -0.1240093745 | I110: -0.04224695592 | J110: -0.5107596523 | K110: 19.87599063 | L110: 9.957753044 | M110: 4.489240348
A111: 94 | B111: 0.1604010198 | C111: 0.1060322064 | D111: 0.4868658376 | E111: -0.9928110589 | F111: -1.247908922 | G111: -0.0329284126 | H111: -0.6949677412 | I111: -0.6376055093 | J111: -0.1361224745 | K111: 19.30503226 | L111: 9.362394491 | M111: 4.863877525
A112: 95 | B112: 0.8490311584 | C112: 0.2046833615 | D112: 0.3980822731 | E112: 1.032287013 | F112: -0.8250085741 | G112: -0.258314047 | H112: 0.7226009091 | I112: -0.0162538606 | J112: 0.03833068984 | K112: 20.72260091 | L112: 9.983746139 | M112: 5.03833069
A113: 96 | B113: 0.7921062146 | C113: 0.1441902427 | D113: 0.125959622 | E113: 0.8137510704 | F113: -1.061681093 | G113: -1.145700145 | H113: 0.5696257493 | I113: -0.1444376929 | J113: -0.141530032 | K113: 20.56962575 | L113: 9.855562307 | M113: 4.858469968
A114: 97 | B114: 0.03276553155 | C114: 0.5882338329 | D114: 0.6999058724 | E114: -1.841617885 | F114: 0.2230040759 | G114: 0.5241298112 | H114: -1.289132519 | I114: -0.370626988 | J114: -0.08875536279 | K114: 18.71086748 | L114: 9.629373012 | M114: 4.911244637
A115: 98 | B115: 0.3609746507 | C115: 0.6019562751 | D115: 0.4579915533 | E115: -0.3558548078 | F115: 0.2584139522 | G115: -0.1054949125 | H115: -0.2490983655 | I115: -0.002712689164 | J115: -0.04720604903 | K115: 19.75090163 | L115: 9.997287311 | M115: 4.952793951
A116: 99 | B116: 0.1423846726 | C116: 0.3807772363 | D116: 0.6462240649 | E116: -1.069666734 | F116: -0.3034401226 | G116: 0.3751460238 | H116: -0.7487667138 | I116: -0.3538208554 | J116: -0.05025588738 | K116: 19.25123329 | L116: 9.646179145 | M116: 4.949744113
A117: 100 | B117: 0.6836278618 | C117: 0.4835357442 | D117: 0.9400849773 | E117: 0.4778678344 | F117: -0.04128149121 | G117: 1.555487349 | H117: 0.3345074841 | I117: 0.1014782031 | J117: 0.3133518461 | K117: 20.33450748 | L117: 10.1014782 | M117: 5.313351846
A118: 101 | B118: 0.2631341551 | C118: 0.8208704954 | D118: 0.4994534091 | E118: -0.6337127383 | F118: 0.9186875778 | G118: -0.001370100652 | H118: -0.4435989168 | I118: 0.1418889677 | J118: -0.04063890781 | K118: 19.55640108 | L118: 10.14188897 | M118: 4.959361092
A119: 102 | B119: 0.6639062807 | C119: 0.2600183322 | D119: 0.7410129865 | E119: 0.4231477872 | F119: -0.6432888894 | G119: 0.6464715333 | H119: 0.296203451 | I119: -0.1042969757 | J119: 0.137032195 | K119: 20.29620345 | L119: 9.895703024 | M119: 5.137032195
A120: 103 | B120: 0.3509759996 | C120: 0.005473424067 | D120: 0.8239652932 | E120: -0.3826868049 | F120: -2.544390968 | G120: 0.930582803 | H120: -0.2678807634 | I120: -0.9060499429 | J120: 0.05761540218 | K120: 19.73211924 | L120: 9.093950057 | M120: 5.057615402
A121: 104 | B121: 0.6620209427 | C121: 0.5185628843 | D121: 0.134365955 | E121: 0.4179849586 | F121: 0.04654705362 | G121: -1.105987546 | H121: 0.292589471 | I121: 0.1152114472 | J121: -0.1465945429 | K121: 20.29258947 | L121: 10.11521145 | M121: 4.853405457
A122: 105 | B122: 0.004940439854 | C122: 0.4773813888 | D122: 0.6470995164 | E122: -2.579970355 | F122: -0.05672685949 | G122: 0.3775014766 | H122: -1.805979248 | I122: -0.6373454802 | J122: -0.1947147136 | K122: 18.19402075 | L122: 9.36265452 | M122: 4.805285286
A123: 106 | B123: 0.2917904069 | C123: 0.3621586311 | D123: 0.037419556 | E123: -0.5481617934 | F123: -0.3526947946 | G123: -1.781449107 | H123: -0.3837132554 | I123: -0.2444211647 | J123: -0.3689585433 | K123: 19.61628674 | L123: 9.755578835 | M123: 4.631041457
A124: 107 | B124: 0.4055751117 | C124: 0.1804315377 | D124: 0.2136761086 | E124: -0.2389424306 | F124: -0.9137217442 | G124: -0.7937307116 | H124: -0.1672597014 | I124: -0.3497371415 | J124: -0.1827758768 | K124: 19.8327403 | L124: 9.650262859 | M124: 4.817224123
A125: 108 | B125: 0.4004037119 | C125: 0.3744637414 | D125: 0.1830014765 | E125: -0.2523022827 | F125: -0.3200538851 | G125: -0.9039857586 | H125: -0.1766115979 | I125: -0.1629697911 | J125: -0.1881669285 | K125: 19.8233884 | L125: 9.837030209 | M125: 4.811833071
A126: 109 | B126: 0.4293392123 | C126: 0.9335768607 | D126: 0.444122083 | E126: -0.1780567283 | F126: 1.502971946 | G126: -0.1405263104 | H126: -0.1246397098 | I126: 0.4382174078 | J126: -0.00431637036 | K126: 19.87536029 | L126: 10.43821741 | M126: 4.99568363
A127: 110 | B127: 0.933988783 | C127: 0.743616263 | D127: 0.05130378049 | E127: 1.506174304 | F127: 0.6545345522 | G127: -1.632341521 | H127: 1.054322013 | I127: 0.5709328897 | J127: -0.1127884472 | K127: 21.05432201 | L127: 10.57093289 | M127: 4.887211553
A128: 111 | B128: 0.7765372158 | C128: 0.9153936671 | D128: 0.7551317833 | E128: 0.760550545 | F128: 1.374738064 | G128: 0.6907280898 | H128: 0.5323853815 | I128: 0.6224483114 | J128: 0.2288083363 | K128: 20.53238538 | L128: 10.62244831 | M128: 5.228808336
A129: 112 | B129: 0.9587147179 | C129: 0.5006746878 | D129: 0.002462378322 | E129: 1.735961941 | F129: 0.001691192396 | G129: -2.811914668 | H129: 1.215173359 | I129: 0.4171720475 | J129: -0.3082994193 | K129: 21.21517336 | L129: 10.41717205 | M129: 4.691700581
A130: 113 | B130: 0.1935014055 | C130: 0.2199277376 | D130: 0.4335702244 | E130: -0.8650655514 | F130: -0.7724372897 | G130: -0.1672918089 | H130: -0.6055458859 | I130: -0.454795665 | J130: -0.1344898589 | K130: 19.39445411 | L130: 9.545204335 | M130: 4.865510141
A131: 114 | B131: 0.1575835866 | C131: 0.2924217702 | D131: 0.6854903666 | E131: -1.004438765 | F131: -0.5463235654 | G131: 0.4831077005 | H131: -0.7031071352 | I131: -0.4158888444 | J131: -0.03130147737 | K131: 19.29689286 | L131: 9.584111156 | M131: 4.968698523
A132: 115 | B132: 0.1635995829 | C132: 0.229128164 | D132: 0.3111662613 | E132: -0.9797710088 | F132: -0.7417211083 | G132: -0.4925472577 | H132: -0.6858397062 | I132: -0.4724957968 | J132: -0.2009384754 | K132: 19.31416029 | L132: 9.527504203 | M132: 4.799061525
A133: 116 | B133: 0.9974357477 | C133: 0.385821086 | D133: 0.6214493969 | E133: 2.798849426 | F133: -0.2902275356 | G133: 0.3092896463 | H133: 1.959194598 | I133: 0.5788510509 | J133: 0.3256388289 | K133: 21.9591946 | L133: 10.57885105 | M133: 5.325638829
A134: 117 | B134: 0.824084896 | C134: 0.4347351079 | D134: 0.7728283853 | E134: 0.931045153 | F134: -0.1643314614 | G134: 0.7481938675 | H134: 0.6517316071 | I134: 0.1708647691 | J134: 0.217230197 | K134: 20.65173161 | L134: 10.17086477 | M134: 5.217230197
A135: 118 | B135: 0.3438797538 | C135: 0.4466641436 | D135: 0.6490233283 | E135: -0.401897439 | F135: -0.1340939454 | G135: 0.3826849922 | H135: -0.2813282073 | I135: -0.1393654479 | J135: 0.02204681065 | K135: 19.71867179 | L135: 9.860634552 | M135: 5.022046811
A136: 119 | B136: 0.3329556697 | C136: 0.5754065619 | D136: 0.7326563072 | E136: -0.4317662115 | F136: 0.1901560161 | G136: 0.6208666198 | H136: -0.3022363481 | I136: -0.04277396562 | J136: 0.0679884567 | K136: 19.69776365 | L136: 9.957226034 | M136: 5.067988457
A137: 120 | B137: 0.1061394148 | C137: 0.06438630197 | D137: 0.5678296549 | E137: -1.247323703 | F137: -1.518959844 | G137: 0.1708513003 | H137: -0.8731265923 | I137: -0.7854248389 | J137: -0.1334239289 | K137: 19.12687341 | L137: 9.214575161 | M137: 4.866576071
A138: 121 | B138: 0.7079360368 | C138: 0.6212347466 | D138: 0.9751369593 | E138: 0.5473651013 | F138: 0.3087252866 | G138: 1.96231277 | H138: 0.3831555709 | I138: 0.230159716 | J138: 0.3987781066 | K138: 20.38315557 | L138: 10.23015972 | M138: 5.398778107
A139: 122 | B139: 0.9924822051 | C139: 0.7199792481 | D139: 0.4401038243 | E139: 2.431520686 | F139: 0.5827798612 | G139: -0.1507059892 | H139: 1.702064481 | I139: 0.7700545203 | J139: 0.23189186 | K139: 21.70206448 | L139: 10.77005452 | M139: 5.23189186
A140: 123 | B140: 0.08073692986 | C140: 0.2025897422 | D140: 0.2487602474 | E140: -1.400131781 | F140: -0.8324065887 | G140: -0.6783962363 | H140: -0.9800922465 | I140: -0.6024017358 | J140: -0.2770945997 | K140: 19.01990775 | L140: 9.397598264 | M140: 4.7229054
A141: 124 | B141: 0.3809043431 | C141: 0.7763948571 | D141: 0.7710732882 | E141: -0.3031065192 | F141: 0.7600741124 | G141: 0.7423861252 | H141: -0.2121745634 | I141: 0.1704781514 | J141: 0.1159297723 | K141: 19.78782544 | L141: 10.17047815 | M141: 5.115929772
A142: 125 | B142: 0.6752056597 | C142: 0.1159544419 | D142: 0.6267710704 | E142: 0.4543336769 | F142: -1.195456086 | G142: 0.3233134628 | H142: 0.3180335739 | I142: -0.273505865 | J142: 0.07096010127 | K142: 20.31803357 | L142: 9.726494135 | M142: 5.070960101
A143: 126 | B143: 0.6362344401 | C143: 0.831509887 | D143: 0.9736355417 | E143: 0.3484115632 | F143: 0.9601490084 | G143: 1.9371344 | H143: 0.2438880942 | I143: 0.3908664579 | J143: 0.3908529906 | K143: 20.24388809 | L143: 10.39086646 | M143: 5.390852991
A144: 127 | B144: 0.7786648837 | C144: 0.7331811502 | D144: 0.1506085825 | E144: 0.7676919286 | F144: 0.6224626445 | G144: -1.033826747 | H144: 0.5373843501 | I144: 0.3834341091 | J144: -0.08485821845 | K144: 20.53738435 | L144: 10.38343411 | M144: 4.915141782
A145: 128 | B145: 0.08364547261 | C145: 0.09672774003 | D145: 0.3625316371 | E145: -1.380961023 | F145: -1.300424609 | G145: -0.3516999818 | H145: -0.9666727163 | I145: -0.7475665205 | J145: -0.2308850575 | K145: 19.03332728 | L145: 9.25243348 | M145: 4.769114942
A146: 129 | B146: 0.3821727119 | C146: 0.8789683354 | D146: 0.3063118508 | E146: -0.2997794074 | F146: 1.169845054 | G146: -0.5063318585 | H146: -0.2098455852 | I146: 0.3024033594 | J146: -0.08751272277 | K146: 19.79015441 | L146: 10.30240336 | M146: 4.912487277
A147: 130 | B147: 0.7978313993 | C147: 0.9623288239 | D147: 0.01609460974 | E147: =_xlfn.NORM.S.INV(B147) -> 0.8339002412 | F147: =_xlfn.NORM.S.INV(C147) -> 1.778374596 | G147: =_xlfn.NORM.S.INV(D147) -> -2.142052974 | H147: 0.5837301688 | I147: 0.7692159285 | J147: -0.2392799941 | K147: =$B$2+H147 -> 20.58373017 | L147: =$C$2+I147 -> 10.76921593 | M147: =$D$2+J147 -> 4.760720006
A148: =$A147+1 -> 131 | B148: 0.1652401708 | C148: 0.05276168084 | D148: 0.9675952492 | E148: -0.9731468108 | F148: -1.618646418 | G148: 1.846569888 | H148: -0.6812027676 | I148: -0.7515220884 | J148: 0.1787052922 | K148: 19.31879723 | L148: 9.248477912 | M148: 5.178705292
A149: 132 | B149: 0.1482642527 | C149: 0.5419124924 | D149: 0.2437248661 | E149: -1.043906814 | F149: 0.1052530517 | G149: -0.6943707501 | H149: -0.7307347696 | I149: -0.2168566587 | J149: -0.2207685057 | K149: 19.26926523 | L149: 9.783143341 | M149: 4.779231494
A150: 133 | B150: 0.6816391319 | C150: 0.106507537 | D150: 0.4801376551 | E150: 0.4722872971 | F150: -1.245317477 | G150: -0.04980810196 | H150: 0.330601108 | I150: -0.2851526412 | J150: 0.007559114215 | K150: 20.33060111 | L150: 9.714847359 | M150: 5.007559114
A151: 134 | B151: 0.1819493784 | C151: 0.1662813481 | D151: 0.89644999 | E151: -0.9079611333 | F151: -0.968964912 | G151: 1.261579824 | H151: -0.6355727933 | I151: -0.5279794438 | J151: 0.101203652 | K151: 19.36442721 | L151: 9.472020556 | M151: 5.101203652
A152: 135 | B152: 0.2215157615 | C152: 0.3257280539 | D152: 0.2068254803 | E152: -0.767084086 | F152: -0.4517402647 | G152: -0.8174856256 | H152: -0.5369588602 | I152: -0.3286570653 | J152: -0.2281118925 | K152: 19.46304114 | L152: 9.671342935 | M152: 4.771888108
A153: 136 | B153: 0.3353911321 | C153: 0.4101024138 | D153: 0.8038677574 | E153: -0.42507464 | F153: -0.2272815387 | G153: 0.8555179254 | H153: -0.297552248 | I153: -0.174748006 | J153: 0.09843888255 | K153: 19.70244775 | L153: 9.825251994 | M153: 5.098438883
A154: 137 | B154: 0.9770679878 | C154: 0.09643446053 | D154: 0.904514859 | E154: 1.996642574 | F154: -1.30213886 | G154: 1.30771415 | H154: 1.397649802 | I154: 0.06250978264 | J154: 0.3912416992 | K154: 21.3976498 | L154: 10.06250978 | M154: 5.391241699
A155: 138 | B155: 0.8558689523 | C155: 0.8371794392 | D155: 0.2400376964 | E155: 1.061941827 | F155: 0.9829315645 | G155: -0.7061813084 | H155: 0.7433592786 | I155: 0.569404139 | J155: 0.009734093367 | K155: 20.74335928 | L155: 10.56940414 | M155: 5.009734093
A156: 139 | B156: 0.4077970228 | C156: 0.2379207704 | D156: 0.6638234881 | E156: -0.2332155319 | F156: -0.7130068137 | G156: 0.4229208312 | H156: -0.1632508723 | I156: -0.284133908 | J156: 0.03133825502 | K156: 19.83674913 | L156: 9.715866092 | M156: 5.031338255
A157: 140 | B157: 0.4913721043 | C157: 0.7769732418 | D157: 0.2368579782 | E157: -0.0216286134 | F157: 0.7620108704 | G157: -0.7164460702 | H157: -0.01514002938 | I157: 0.2386526113 | J157: -0.1059052595 | K157: 19.98485997 | L157: 10.23865261 | M157: 4.89409474
A158: 141 | B158: 0.5462189362 | C158: 0.7706148917 | D158: 0.04743528967 | E158: 0.1161140832 | F158: 0.7408733813 | G158: -1.670246622 | H158: 0.08127985821 | I158: 0.264946862 | J158: -0.2561326055 | K158: 20.08127986 | L158: 10.26494686 | M158: 4.743867394
A159: 142 | B159: 0.8332481461 | C159: 0.7656419721 | D159: 0.03379902416 | E159: 0.96708067 | F159: 0.7245696955 | G159: -1.827676958 | H159: 0.676956469 | I159: 0.4639616634 | J159: -0.1984257392 | K159: 20.67695647 | L159: 10.46396166 | M159: 4.801574261
A160: 143 | B160: 0.1678866083 | C160: 0.3078510901 | D160: 0.7789969797 | E160: -0.962550365 | F160: -0.5019507285 | G160: 0.7688101196 | H160: -0.6737852555 | I160: -0.3916363207 | J160: 0.02296361112 | K160: 19.32621474 | L160: 9.608363679 | M160: 5.022963611
A161: 144 | B161: 0.4402545592 | C161: 0.99725876 | D161: 0.1156255515 | E161: -0.1503238485 | F161: 2.777227445 | G161: -1.19714228 | H161: -0.105226694 | I161: 0.8526350588 | J161: -0.1507815482 | K161: 19.89477331 | L161: 10.85263506 | M161: 4.849218452
A162: 145 | B162: 0.5006124802 | C162: 0.06753024623 | D162: 0.9234627622 | E162: 0.001535260732 | F162: -1.494440616 | G162: 1.428755654 | H162: 0.001074682513 | I162: -0.4778525344 | J162: 0.2076688924 | K162: 20.00107468 | L162: 9.522147466 | M162: 5.207668892
A163: 146 | B163: 0.2189676808 | C163: 0.1044377783 | D163: 0.2466325522 | E163: -0.7756843855 | F163: -1.256663372 | G163: -0.6851249069 | H163: -0.5429790699 | I163: -0.5882965317 | J163: -0.2264095159 | K163: 19.45702093 | L163: 9.411703468 | M163: 4.773590484
A164: 147 | B164: 0.05851856774 | C164: 0.6396712913 | D164: 0.639232975 | E164: -1.567331888 | F164: 0.3575803077 | G164: 0.3564093208 | H164: -1.097132322 | I164: -0.2617339547 | J164: -0.08670820113 | K164: 18.90286768 | L164: 9.738266045 | M164: 4.913291799
A165: 148 | B165: 0.8252397576 | C165: 0.805847495 | D165: 0.106235318 | E165: 0.935519799 | F165: 0.8626953129 | G165: -1.246800558 | H165: 0.6548638593 | I165: 0.5005872519 | J165: -0.09857148677 | K165: 20.65486386 | L165: 10.50058725 | M165: 4.901428513
A166: 149 | B166: 0.05314293724 | C166: 0.1740094281 | D166: 0.4494478807 | E166: -1.615114625 | F166: -0.9384389909 | G166: -0.1270563975 | H166: -1.130580237 | I166: -0.687927987 | J166: -0.2067488066 | K166: 18.86941976 | L166: 9.312072013 | M166: 4.793251193
A167: 150 | B167: 0.9377529118 | C167: 0.2791740475 | D167: 0.1820176764 | E167: 1.536180259 | F167: -0.585296906 | G167: -0.9077026322 | H167: 1.075326181 | I167: 0.1813882521 | J167: -0.01658678995 | K167: 21.07532618 | L167: 10.18138825 | M167: 4.98341321
A168: 151 | B168: 0.9332696227 | C168: 0.2197349546 | D168: 0.6688999881 | E168: 1.500593419 | F168: -0.7730886645 | G168: 0.4368777294 | H168: 1.050415393 | I168: 0.1127540478 | J168: 0.2056091956 | K168: 21.05041539 | L168: 10.11275405 | M168: 5.205609196
A169: 152 | B169: 0.5535951361 | C169: 0.004746661435 | D169: 0.7131269481 | E169: 0.1347497618 | F169: -2.593758193 | G169: 0.5625430167 | H169: 0.09432483323 | I169: -0.7976626788 | J169: 0.04504603687 | K169: 20.09432483 | L169: 9.202337321 | M169: 5.045046037
A170: 153 | B170: 0.493327904 | C170: 0.8348423986 | D170: 0.9077713381 | E170: -0.01672524412 | F170: 0.9734791802 | G170: 1.327155275 | H170: -0.01170767089 | I170: 0.3074992791 | J170: 0.2501274092 | K170: 19.98829233 | L170: 10.30749928 | M170: 5.250127409
A171: 154 | B171: 0.587036997 | C171: 0.4842685837 | D171: 0.5995440996 | E171: 0.2199295706 | F171: -0.03944303784 | G171: 0.2521672373 | H171: 0.1539506994 | I171: 0.04016132483 | J171: 0.06422616812 | K171: 20.1539507 | L171: 10.04016132 | M171: 5.064226168
A172: 155 | B172: 0.4116522822 | C172: 0.1136199723 | D172: 0.1799000932 | E172: -0.22329674 | F172: -1.207499222 | G172: -0.9157458965 | H172: -0.156307718 | I172: -0.4399909685 | J172: -0.2094680938 | K172: 19.84369228 | L172: 9.560009031 | M172: 4.790531906
A173: 156 | B173: 0.7062211431 | C173: 0.9168428489 | D173: 0.3764347782 | E173: 0.5423786073 | F173: 1.38414421 | G173: -0.3148578888 | H173: 0.3796650251 | I173: 0.5730970129 | J173: 0.03487754263 | K173: 20.37966503 | L173: 10.57309701 | M173: 5.034877543
A174: 157 | B174: 0.732729672 | C174: 0.7105897089 | D174: 0.02329923658 | E174: 0.6210896239 | F174: 0.5551083054 | G174: -1.989931579 | H174: 0.4347627367 | I174: 0.3266961675 | J174: -0.2650704195 | K174: 20.43476274 | L174: 10.32669617 | M174: 4.73492958
A175: 158 | B175: 0.5275324696 | C175: 0.6470369037 | D175: 0.884314748 | E175: 0.06906854241 | F175: 0.3773329442 | G175: 1.196835947 | H175: 0.04834797968 | I175: 0.1373229923 | J175: 0.2214675245 | K175: 20.04834798 | L175: 10.13732299 | M175: 5.221467525
A176: 159 | B176: 0.5517445221 | C176: 0.946151544 | D176: 0.9478918433 | E176: 0.1300701128 | F176: 1.608631638 | G176: 1.624747773 | H176: 0.09104907896 | I176: 0.5459789511 | J176: 0.3316905408 | K176: 20.09104908 | L176: 10.54597895 | M176: 5.331690541
A177: 160 | B177: 0.03858404731 | C177: 0.8044162514 | D177: 0.2214778493 | E177: -1.76735918 | F177: 0.8575020232 | G177: -0.767211631 | H177: -1.237151426 | I177: -0.1497655557 | J177: -0.2867918161 | K177: 18.76284857 | L177: 9.850234444 | M177: 4.713208184
A178: 161 | B178: 0.1506656765 | C178: 0.2469277381 | D178: 0.901175485 | E178: -1.033582566 | F178: -0.6841895561 | G178: 1.288278513 | H178: -0.7235077965 | I178: -0.4670004739 | J178: 0.1003368173 | K178: 19.2764922 | L178: 9.532999526 | M178: 5.100336817
A179: 162 | B179: 0.5545904216 | C179: 0.7320784683 | D179: 0.9707008388 | E179: 0.1372677553 | F179: 0.619111264 | G179: 1.89119497 | H179: 0.09608742869 | I179: 0.2310598658 | J179: 0.3533390446 | K179: 20.09608743 | L179: 10.23105987 | M179: 5.353339045
A180: 163 | B180: 0.4537316339 | C180: 0.4517052875 | D180: 0.4022166756 | E180: -0.1162388245 | F180: -0.121354095 | G180: -0.2476136464 | H180: -0.08136717715 | I180: -0.06673062827 | J180: -0.05709657567 | K180: 19.91863282 | L180: 9.933269372 | M180: 4.942903424
A181: 164 | B181: 0.8092942232 | C181: 0.1039303509 | D181: 0.6923444691 | E181: 0.87529842 | F181: -1.259469772 | G181: 0.502506812 | H181: 0.612708894 | I181: -0.1929587062 | J181: 0.1421684261 | K181: 20.61270889 | L181: 9.807041294 | M181: 5.142168426
A182: 165 | B182: 0.30093343 | C182: 0.5161450074 | D182: 0.5872867387 | E182: -0.5217177562 | F182: 0.04048058514 | G182: 0.2205709498 | H182: -0.3652024293 | I182: -0.1122584742 | J182: -0.01335580483 | K182: 19.63479757 | L182: 9.887741526 | M182: 4.986644195
A183: 166 | B183: 0.7085941794 | C183: 0.9612911412 | D183: 0.5172372347 | E183: 0.5492824329 | F183: 1.765869664 | G183: 0.04322079245 | H183: 0.384497703 | I183: 0.6969060764 | J183: 0.1064826555 | K183: 20.3844977 | L183: 10.69690608 | M183: 5.106482656
A184: 167 | B184: 0.01830007654 | C184: 0.08793452042 | D184: 0.9755667975 | E184: -2.090196486 | F184: -1.353584293 | G184: 1.969755446 | H184: -1.46313754 | I184: -0.9347941304 | J184: 0.09473981873 | K184: 18.53686246 | L184: 9.06520587 | M184: 5.094739819
A185: 168 | B185: 0.4375000108 | C185: 0.7746516398 | D185: 0.7622544815 | E185: -0.1573106572 | F185: 0.7542539962 | G185: 0.7135733575 | H185: -0.11011746 | I185: 0.203606721 | J185: 0.125425596 | K185: 19.88988254 | L185: 10.20360672 | M185: 5.125425596
A186: 169 | B186: 0.0004772341911 | C186: 0.9590751334 | D186: 0.239885074 | E186: -3.303614926 | F186: 1.740052879 | G186: -0.7066722988 | H186: -2.312530448 | I186: -0.2360506609 | J186: -0.4079777005 | K186: 17.68746955 | L186: 9.763949339 | M186: 4.592022299
A187: 170 | B187: 0.1392900125 | C187: 0.4161569482 | D187: 0.487233983 | E187: -1.08351471 | F187: -0.2117348522 | G187: -0.03200512225 | H187: -0.7584602973 | I187: -0.3277986832 | J187: -0.1191302439 | K187: 19.2415397 | L187: 9.672201317 | M187: 4.880869756
A188: 171 | B188: 0.3423015719 | C188: 0.2590652826 | D188: 0.7440300655 | E188: -0.4061898059 | F188: -0.6462297657 | G188: 0.6558201203 | H188: -0.2843328641 | I188: -0.3042790785 | J188: 0.05562718088 | K188: 19.71566714 | L188: 9.695720922 | M188: 5.055627181
A189: 172 | B189: 0.8626182694 | C189: 0.9800482789 | D189: 0.01367533313 | E189: 1.092158452 | F189: 2.054747058 | G189: -2.206476323 | H189: 0.7645109161 | I189: 0.9196370871 | J189: -0.2175864672 | K189: 20.76451092 | L189: 10.91963709 | M189: 4.782413533
A190: 173 | B190: 0.2266341088 | C190: 0.4992342105 | D190: 0.918867357 | E190: -0.7499775637 | F190: -0.001919550913 | G190: 1.39749328 | H190: -0.5249842946 | I190: -0.1806088716 | J190: 0.1644725357 | K190: 19.47501571 | L190: 9.819391128 | M190: 5.164472536
A191: 174 | B191: 0.6790921982 | C191: 0.4163337063 | D191: 0.7087023204 | E191: 0.4651617842 | F191: -0.2112817633 | G191: 0.5495976672 | H191: 0.3256132489 | I191: 0.04402866395 | J191: 0.1354304287 | K191: 20.32561325 | L191: 10.04402866 | M191: 5.135430429
A192: 175 | B192: 0.8786383488 | C192: 0.543459587 | D192: 0.62187146 | E192: 1.168206938 | F192: 0.1091533935 | G192: 0.3103996239 | H192: 0.8177448569 | I192: 0.3152987511 | J192: 0.1727493439 | K192: 20.81774486 | L192: 10.31529875 | M192: 5.172749344
A193: 176 | B193: 0.3748946851 | C193: 0.8713829134 | D193: 0.6518005176 | E193: -0.3189171088 | F193: 1.132952566 | G193: 0.3901860655 | H193: -0.2232419762 | I193: 0.2860047151 | J193: 0.06330662565 | K193: 19.77675802 | L193: 10.28600472 | M193: 5.063306626
A194: 177 | B194: 0.7857681768 | C194: 0.8835386873 | D194: 0.9091967268 | E194: 0.7918234169 | F194: 1.192864038 | G194: 1.335824795 | H194: 0.5542763918 | I194: 0.5717541122 | J194: 0.3379527777 | K194: 20.55427639 | L194: 10.57175411 | M194: 5.337952778
A195: 178 | B195: 0.5953890643 | C195: 0.3131246748 | D195: 0.7227959861 | E195: 0.2414299899 | F195: -0.4870126737 | G195: 0.5911677517 | H195: 0.169000993 | I195: -0.09790085799 | J195: 0.1132887301 | K195: 20.16900099 | L195: 9.902099142 | M195: 5.11328873
A196: 179 | B196: 0.1402690602 | C196: 0.1946128865 | D196: 0.4412787123 | E196: -1.079111287 | F196: -0.8610222784 | G196: -0.1477280109 | H196: -0.7553779006 | I196: -0.5345138378 | J196: -0.154755991 | K196: 19.2446221 | L196: 9.465486162 | M196: 4.845244009
A197: 180 | B197: 0.4257289668 | C197: 0.04847658695 | D197: 0.4083276409 | E197: -0.1872585332 | F197: -1.659807553 | G197: -0.23184902 | H197: -0.1310809733 | I197: -0.5760804648 | J197: -0.09995796215 | K197: 19.86891903 | L197: 9.423919535 | M197: 4.900042038
A198: 181 | B198: 0.06354593147 | C198: 0.682488905 | D198: 0.2241015917 | E198: -1.525670829 | F198: 0.4746700196 | G198: -0.7584139932 | H198: -1.06796958 | I198: -0.2142665926 | J198: -0.2706859419 | K198: 18.93203042 | L198: 9.785733407 | M198: 4.729314058
A199: 182 | B199: 0.68393048 | C199: 0.07314295135 | D199: 0.6643608983 | E199: 0.4787183073 | F199: -1.452776198 | G199: 0.4243944009 | H199: 0.3351028151 | I199: -0.3499959895 | J199: 0.08428996146 | K199: 20.33510282 | L199: 9.650004011 | M199: 5.084289961
A200: 183 | B200: 0.2761956214 | C200: 0.2841580368 | D200: 0.2886634214 | E200: -0.5941807257 | F200: -0.5705332549 | G200: -0.5572936071 | H200: -0.415926508 | I200: -0.3251740157 | J200: -0.169196716 | K200: 19.58407349 | L200: 9.674825984 | M200: 4.830803284
... 1818 more rows

Sheet Example4
A1: 2017-08-26 | R1: *
A2: m = | B2: 20 | C2: 10 | D2: 5 | E2: 2.5 | R2: *
A3: s = | B3: 0.7 | C3: 0.4 | D3: 0.2 | E3: 0.1 | F3: L_c | G3: From site | L3: From 'makecholesky', equal to site | R3: *
A4: R = | B4: 1 | C4: 0.6 | D4: 0.5 | E4: 0.55 | F4: (COV) = | G4: 0.7 | H4: 0 | I4: 0 | J4: 0 | K4: L_c = | L4: =makecholesky(B9:E12) -> 0.7 | M4: 0 | N4: 0 | O4: 0 | R4: *
B5: =C4 -> 0.6 | C5: 1 | D5: 0.4 | E5: 0.3 | G5: 0.24 | H5: 0.32 | I5: 0 | J5: 0 | L5: 0.24 | M5: 0.32 | N5: 0 | O5: 0 | R5: *
B6: =D4 -> 0.5 | C6: =D5 -> 0.4 | D6: 1 | E6: 0.2 | G6: 0.1 | H6: 0.025 | I6: 0.1714 | J6: 0 | L6: 0.1 | M6: 0.025 | N6: 0.171391365 | O6: 0 | R6: *
B7: =E4 -> 0.55 | C7: =E5 -> 0.3 | D7: =E6 -> 0.2 | E7: 1 | G7: 0.055 | H7: -0.00375 | I7: -0.0082049 | J7: 0.083028 | L7: 0.055 | M7: -0.00375 | N7: -0.008204905772 | O7: 0.08302780872 | R7: *
G8: Needed (here) | R8: *
A9: COV = | B9: =$B$3^2 -> 0.49 | C9: =$B$3*$C$3*$C$4 -> 0.168 | D9: =$B$3*$D$3*$D$4 -> 0.07 | E9: =$B$3*$E$3*$E$4 -> 0.0385 | F9: L_cT = | G9: =TRANSPOSE(G4:J7) -> 0.7 | H9: 0.24 | I9: 0.1 | J9: 0.055 | M9: R (CORR) | N9: 1 | O9: =CORREL(N20:N2019,O20:O2019) -> 0.6124322642 | P9: =CORREL(N20:N2019,P20:P2019) -> 0.5298606842 | Q9: =CORREL(N20:N2019,Q20:Q2019) -> 0.571232664 | R9: *
A10: s s r | B10: =C9 -> 0.168 | C10: =$C$3^2 -> 0.16 | D10: =$C$3*$D$3*$D$5 -> 0.032 | E10: =$C$3*$E$3*$E$5 -> 0.012 | G10: 0 | H10: 0.32 | I10: 0.025 | J10: -0.00375 | M10: verify = | O10: 1 | P10: =CORREL(O20:O2019,P20:P2019) -> 0.4232638552 | Q10: =CORREL(O20:O2019,Q20:Q2019) -> 0.334693595 | R10: *
B11: =D9 -> 0.07 | C11: =D10 -> 0.032 | D11: =$D$3^2 -> 0.04 | E11: =$D$3*$E$3*$E$6 -> 0.004 | G11: 0 | H11: 0 | I11: 0.1714 | J11: -0.0082049 | P11: 1 | Q11: =CORREL(P20:P2019,Q20:Q2019) -> 0.2310689827 | R11: *
B12: =E9 -> 0.0385 | C12: =E10 -> 0.012 | D12: =E11 -> 0.004 | E12: =$E$3^2 -> 0.01 | G12: 0 | H12: 0 | I12: 0 | J12: 0.083028 | R12: *
R13: *
C14: r | G14: g = F-1(r) | K14: d = L_c . g | O14: x = d + m | R14: *
P15: * | R15: *
A16: Average | B16: =AVERAGE(B20:B2019) -> 0.5065604132 | C16: 0.498809503 | D16: 0.4873886135 | E16: =AVERAGE(E20:E2019) -> 0.5032898323 | F16: =AVERAGE(F20:F2019) -> 0.02392319323 | G16: =AVERAGE(G20:G2019) -> -0.01109483944 | H16: =AVERAGE(H20:H2019) -> -0.04961155625 | I16: =AVERAGE(I20:I2019) -> 0.01573254873 | J16: =AVERAGE(J20:J2019) -> 0.01674623526 | K16: =AVERAGE(K20:K2019) -> 0.002191217753 | L16: =AVERAGE(L20:L2019) -> -0.006388472405 | M16: =AVERAGE(M20:M2019) -> 0.003070681189 | N16: =AVERAGE(N20:N2019) -> 20.01674624 | O16: =AVERAGE(O20:O2019) -> 10.00219122 | P16: =AVERAGE(P20:P2019) -> 4.993611528 | Q16: =AVERAGE(Q20:Q2019) -> 2.503070681 | R16: *
A17: Stdev | B17: =STDEV(B20:B2019) -> 0.2890937972 | C17: 0.2930168181 | D17: 0.2854528741 | E17: =STDEV(E20:E2019) -> 0.289067587 | F17: =STDEV(F20:F2019) -> 1.003456423 | G17: =STDEV(G20:G2019) -> 1.01547958 | H17: =STDEV(H20:H2019) -> 0.9738498354 | I17: =STDEV(I20:I2019) -> 1.009370992 | J17: =STDEV(J20:J2019) -> 0.7024194962 | K17: =STDEV(K20:K2019) -> 0.4108351167 | L17: =STDEV(L20:L2019) -> 0.1989238848 | M17: =STDEV(M20:M2019) -> 0.1025263572 | N17: =STDEV(N20:N2019) -> 0.7024194962 | O17: =STDEV(O20:O2019) -> 0.4108351167 | P17: =STDEV(P20:P2019) -> 0.1989238848 | Q17: =STDEV(Q20:Q2019) -> 0.1025263572 | R17: *
R18: *
A19: i | B19: wRand | C19: xRand | D19: yRand | E19: zRand | F19: wGauss | G19: xGauss | H19: yGauss | I19: zGauss | J19: wModif | K19: xModif | L19: yModif | M19: zModif | N19: w | O19: x | P19: y | Q19: z | R19: *
A20: 1 | B20: 0.8616411286 | C20: 0.2791909443 | D20: 0.5291902413 | E20: 0.9847723149 | F20: =_xlfn.NORM.S.INV(B20) -> 1.087722248 | G20: =_xlfn.NORM.S.INV(C20) -> -0.5852466397 | H20: =_xlfn.NORM.S.INV(D20) -> 0.07323449465 | I20: =_xlfn.NORM.S.INV(E20) -> 2.164117013 | J20: =MMULT(F20:I2019,G9:J12) -> 0.7614055739 | K20: 0.07377441494 | L20: 0.1066934512 | M20: 0.2411008242 | N20: =$B$2+J20 -> 20.76140557 | O20: =$C$2+K20 -> 10.07377441 | P20: =$D$2+L20 -> 5.106693451 | Q20: =$E$2+M20 -> 2.741100824
A21: =$A20+1 -> 2 | B21: 0.8481401106 | C21: 0.8050496576 | D21: 0.4185036513 | E21: 0.5435147122 | F21: =_xlfn.NORM.S.INV(B21) -> 1.028489178 | G21: =_xlfn.NORM.S.INV(C21) -> 0.859797487 | H21: =_xlfn.NORM.S.INV(D21) -> -0.2057229856 | I21: =_xlfn.NORM.S.INV(E21) -> 0.1092923985 | J21: 0.7199424248 | K21: 0.5219725986 | L21: 0.08908293527 | M21: 0.06410493001 | N21: =$B$2+J21 -> 20.71994242 | O21: =$C$2+K21 -> 10.5219726 | P21: =$D$2+L21 -> 5.089082935 | Q21: =$E$2+M21 -> 2.56410493
A22: =$A21+1 -> 3 | B22: 0.2846679582 | C22: 0.7468777617 | D22: 0.09082123189 | E22: 0.8101823612 | F22: =_xlfn.NORM.S.INV(B22) -> -0.5690298006 | G22: =_xlfn.NORM.S.INV(C22) -> 0.6646967443 | H22: =_xlfn.NORM.S.INV(D22) -> -1.335714941 | I22: 0.8785685073 | J22: -0.3983208604 | K22: 0.07613580605 | L22: -0.2692271024 | M22: 0.05011594173 | N22: =$B$2+J22 -> 19.60167914 | O22: =$C$2+K22 -> 10.07613581 | P22: =$D$2+L22 -> 4.730772898 | Q22: 2.550115942
A23: 4 | B23: 0.8214444827 | C23: 0.1103753854 | D23: 0.2379013611 | E23: 0.5200940875 | F23: =_xlfn.NORM.S.INV(B23) -> 0.92088392 | G23: =_xlfn.NORM.S.INV(C23) -> -1.224534206 | H23: =_xlfn.NORM.S.INV(D23) -> -0.7130695476 | I23: 0.05038972405 | J23: 0.644618744 | K23: -0.170838805 | L23: -0.0607450836 | M23: 0.06527504121 | N23: =$B$2+J23 -> 20.64461874 | O23: =$C$2+K23 -> 9.829161195 | P23: =$D$2+L23 -> 4.939254916 | Q23: 2.565275041
A24: 5 | B24: 0.5335722926 | C24: 0.2795176165 | D24: 0.1157346494 | E24: 0.008202459289 | F24: =_xlfn.NORM.S.INV(B24) -> 0.08425283057 | G24: =_xlfn.NORM.S.INV(C24) -> -0.5842751133 | H24: =_xlfn.NORM.S.INV(D24) -> -1.196582567 | I24: -2.399780211 | J24: 0.0589769814 | K24: -0.1667473569 | L24: -0.2112758467 | M24: -0.1826061737 | N24: =$B$2+J24 -> 20.05897698 | O24: =$C$2+K24 -> 9.833252643 | P24: =$D$2+L24 -> 4.788724153 | Q24: 2.317393826
A25: 6 | B25: 0.7319719188 | C25: 0.8839649207 | D25: 0.6603562587 | E25: 0.7265215729 | F25: =_xlfn.NORM.S.INV(B25) -> 0.6187877969 | G25: =_xlfn.NORM.S.INV(C25) -> 1.195043183 | H25: =_xlfn.NORM.S.INV(D25) -> 0.4134356188 | I25: 0.6023264554 | J25: 0.4331514578 | K25: 0.5309228899 | L25: 0.1626177243 | M25: 0.07616967992 | N25: =$B$2+J25 -> 20.43315146 | O25: =$C$2+K25 -> 10.53092289 | P25: =$D$2+L25 -> 5.162617724 | Q25: 2.57616968
A26: 7 | B26: 0.9145841059 | C26: 0.357224417 | D26: 0.8627396724 | E26: 0.9416409053 | F26: =_xlfn.NORM.S.INV(B26) -> 1.369536005 | G26: =_xlfn.NORM.S.INV(C26) -> -0.3658877548 | H26: =_xlfn.NORM.S.INV(D26) -> 1.092711122 | I26: 1.568698581 | J26: 0.9586752034 | K26: 0.2116045596 | L26: 0.3150970929 | M26: 0.1979768796 | N26: =$B$2+J26 -> 20.9586752 | O26: =$C$2+K26 -> 10.21160456 | P26: =$D$2+L26 -> 5.315097093 | Q26: 2.69797688
A27: 8 | B27: 0.9531744406 | C27: 0.3358272523 | D27: 0.1108585661 | E27: 0.975514658 | F27: =_xlfn.NORM.S.INV(B27) -> 1.676444703 | G27: =_xlfn.NORM.S.INV(C27) -> -0.4238783904 | H27: =_xlfn.NORM.S.INV(D27) -> -1.221974865 | I27: 1.96884682 | J27: 1.173511292 | K27: 0.2667056439 | L27: -0.05239898132 | M27: 0.267289598 | N27: =$B$2+J27 -> 21.17351129 | O27: =$C$2+K27 -> 10.26670564 | P27: =$D$2+L27 -> 4.947601019 | Q27: 2.767289598
A28: 9 | B28: 0.1496326235 | C28: 0.389807304 | D28: 0.9691002587 | E28: 0.6225790728 | F28: =_xlfn.NORM.S.INV(B28) -> -1.038010327 | G28: =_xlfn.NORM.S.INV(C28) -> -0.2798213017 | H28: =_xlfn.NORM.S.INV(D28) -> 1.867731665 | I28: 0.3122614241 | J28: -0.7266072292 | K28: -0.3386652951 | L28: 0.2093326421 | M28: -0.04543934815 | N28: =$B$2+J28 -> 19.27339277 | O28: =$C$2+K28 -> 9.661334705 | P28: =$D$2+L28 -> 5.209332642 | Q28: 2.454560652
A29: 10 | B29: 0.176986929 | C29: 0.6035693516 | D29: 0.9825552224 | E29: 0.06634532349 | F29: =_xlfn.NORM.S.INV(B29) -> -0.9269088574 | G29: =_xlfn.NORM.S.INV(C29) -> 0.2625968907 | H29: =_xlfn.NORM.S.INV(D29) -> 2.109637924 | I29: -1.503575719 | J29: -0.6488362001 | K29: -0.1384271208 | L29: 0.2754659767 | M29: -0.1941129785 | N29: =$B$2+J29 -> 19.3511638 | O29: =$C$2+K29 -> 9.861572879 | P29: =$D$2+L29 -> 5.275465977 | Q29: 2.305887022
A30: 11 | B30: 0.7245906876 | C30: 0.8841216565 | D30: 0.2878816063 | E30: 0.04052059512 | F30: =_xlfn.NORM.S.INV(B30) -> 0.5965338839 | G30: =_xlfn.NORM.S.INV(C30) -> 1.195845934 | H30: =_xlfn.NORM.S.INV(D30) -> -0.5595840121 | I30: -1.744676534 | J30: 0.4175737187 | K30: 0.5258388309 | L30: -0.006363162943 | M30: -0.111940731 | N30: =$B$2+J30 -> 20.41757372 | O30: =$C$2+K30 -> 10.52583883 | P30: =$D$2+L30 -> 4.993636837 | Q30: 2.388059269
A31: 12 | B31: 0.1840983127 | C31: 0.4050480107 | D31: 0.935062743 | E31: 0.8119437415 | F31: =_xlfn.NORM.S.INV(B31) -> -0.8998564937 | G31: =_xlfn.NORM.S.INV(C31) -> -0.240302159 | H31: =_xlfn.NORM.S.INV(D31) -> 1.514596914 | I31: 0.8850817959 | J31: -0.6298995456 | K31: -0.2928622494 | L31: 0.1636087078 | M31: 0.01246848107 | N31: =$B$2+J31 -> 19.37010045 | O31: =$C$2+K31 -> 9.707137751 | P31: =$D$2+L31 -> 5.163608708 | Q31: 2.512468481
A32: 13 | B32: 0.7557158025 | C32: 0.414811565 | D32: 0.3501710112 | E32: 0.9636722758 | F32: =_xlfn.NORM.S.INV(B32) -> 0.6925875987 | G32: =_xlfn.NORM.S.INV(C32) -> -0.2151849427 | H32: =_xlfn.NORM.S.INV(D32) -> -0.3848588129 | I32: 1.794989026 | J32: 0.4848113191 | K32: 0.09736184203 | L32: -0.002085664223 | M32: 0.1910913384 | N32: =$B$2+J32 -> 20.48481132 | O32: =$C$2+K32 -> 10.09736184 | P32: =$D$2+L32 -> 4.997914336 | Q32: 2.691091338
A33: 14 | B33: 0.3285408905 | C33: 0.6676276448 | D33: 0.7453553949 | E33: 0.9350473529 | F33: =_xlfn.NORM.S.INV(B33) -> -0.4439457855 | G33: =_xlfn.NORM.S.INV(C33) -> 0.4333717636 | H33: =_xlfn.NORM.S.INV(D33) -> 0.6599448671 | I33: 1.514475456 | J33: -0.3107620499 | K33: 0.03213197582 | L33: 0.07955426576 | M33: 0.09428692422 | N33: =$B$2+J33 -> 19.68923795 | O33: =$C$2+K33 -> 10.03213198 | P33: =$D$2+L33 -> 5.079554266 | Q33: 2.594286924
A34: 15 | B34: 0.107749851 | C34: 0.03249917656 | D34: 0.851877045 | E34: 0.9946295991 | F34: =_xlfn.NORM.S.INV(B34) -> -1.238583715 | G34: =_xlfn.NORM.S.INV(C34) -> -1.845269444 | H34: =_xlfn.NORM.S.INV(D34) -> 1.044517753 | I34: 2.551020466 | J34: -0.8670086006 | K34: -0.8877463136 | L34: 0.009040235267 | M34: 0.1420336196 | N34: =$B$2+J34 -> 19.1329914 | O34: =$C$2+K34 -> 9.112253686 | P34: =$D$2+L34 -> 5.009040235 | Q34: 2.64203362
A35: 16 | B35: 0.8809655321 | C35: 0.9004193022 | D35: 0.1446679121 | E35: 0.7017867586 | F35: =_xlfn.NORM.S.INV(B35) -> 1.179827233 | G35: =_xlfn.NORM.S.INV(C35) -> 1.283944442 | H35: =_xlfn.NORM.S.INV(D35) -> -1.059579763 | I35: 0.5295463751 | J35: 0.8258790631 | K35: 0.6940207573 | L35: -0.03153063702 | M35: 0.1127366286 | N35: =$B$2+J35 -> 20.82587906 | O35: =$C$2+K35 -> 10.69402076 | P35: =$D$2+L35 -> 4.968469363 | Q35: 2.612736629
A36: 17 | B36: 0.08717780017 | C36: 0.6266527286 | D36: 0.6966032942 | E36: 0.4417157575 | F36: =_xlfn.NORM.S.INV(B36) -> -1.358340703 | G36: =_xlfn.NORM.S.INV(C36) -> 0.3230009234 | H36: =_xlfn.NORM.S.INV(D36) -> 0.5146560196 | I36: -0.146620572 | J36: -0.9508384923 | K36: -0.2226414733 | L36: -0.03954700548 | M36: -0.09231630617 | N36: =$B$2+J36 -> 19.04916151 | O36: =$C$2+K36 -> 9.777358527 | P36: =$D$2+L36 -> 4.960452995 | Q36: 2.407683694
A37: 18 | B37: 0.5935443628 | C37: 0.11962899 | D37: 0.7940944349 | E37: 0.164819682 | F37: =_xlfn.NORM.S.INV(B37) -> 0.2366719797 | G37: =_xlfn.NORM.S.INV(C37) -> -1.176843491 | H37: =_xlfn.NORM.S.INV(D37) -> 0.8207106024 | I37: -0.9748405407 | J37: 0.1656703858 | K37: -0.3197886421 | L37: 0.1349159079 | M37: -0.07024278686 | N37: =$B$2+J37 -> 20.16567039 | O37: =$C$2+K37 -> 9.680211358 | P37: =$D$2+L37 -> 5.134915908 | Q37: 2.429757213
A38: 19 | B38: 0.03334957753 | C38: 0.1086509581 | D38: 0.7359895171 | E38: 0.5558092071 | F38: =_xlfn.NORM.S.INV(B38) -> -1.83369585 | G38: =_xlfn.NORM.S.INV(C38) -> -1.233734332 | H38: =_xlfn.NORM.S.INV(D38) -> 0.631029913 | I38: 0.1403523733 | J38: -1.283587095 | K38: -0.8348819903 | L38: -0.1060544162 | M38: -0.08975112846 | N38: =$B$2+J38 -> 18.71641291 | O38: =$C$2+K38 -> 9.16511801 | P38: =$D$2+L38 -> 4.893945584 | Q38: 2.410248872
A39: 20 | B39: 0.3659560654 | C39: 0.6560442477 | D39: 0.2926047583 | E39: 0.739170893 | F39: =_xlfn.NORM.S.INV(B39) -> -0.3425830828 | G39: =_xlfn.NORM.S.INV(C39) -> 0.4016909244 | H39: =_xlfn.NORM.S.INV(D39) -> -0.5457911365 | I39: 0.6407914111 | J39: -0.239808158 | K39: 0.04632115593 | L39: -0.117764636 | M39: 0.03733338046 | N39: =$B$2+J39 -> 19.76019184 | O39: =$C$2+K39 -> 10.04632116 | P39: =$D$2+L39 -> 4.882235364 | Q39: 2.53733338
A40: 21 | B40: 0.5220205714 | C40: 0.7213368913 | D40: 0.0433745687 | E40: 0.08062885261 | F40: =_xlfn.NORM.S.INV(B40) -> 0.05522544557 | G40: =_xlfn.NORM.S.INV(C40) -> 0.5868175967 | H40: =_xlfn.NORM.S.INV(D40) -> -1.712801102 | I40: -1.400854106 | J40: 0.0386578119 | K40: 0.2010357379 | L40: -0.2733811243 | M40: -0.1014199194 | N40: =$B$2+J40 -> 20.03865781 | O40: =$C$2+K40 -> 10.20103574 | P40: =$D$2+L40 -> 4.726618876 | Q40: 2.398580081
A41: 22 | B41: 0.3718210772 | C41: 0.6530590778 | D41: 0.1290151037 | E41: 0.8781675822 | F41: =_xlfn.NORM.S.INV(B41) -> -0.32703402 | G41: =_xlfn.NORM.S.INV(C41) -> 0.3935926015 | H41: =_xlfn.NORM.S.INV(D41) -> -1.131059123 | I41: 1.165875377 | J41: -0.228923814 | K41: 0.04746146768 | L41: -0.2167271207 | M41: 0.08661768444 | N41: =$B$2+J41 -> 19.77107619 | O41: =$C$2+K41 -> 10.04746147 | P41: =$D$2+L41 -> 4.783272879 | Q41: 2.586617684
A42: 23 | B42: 0.7375392696 | C42: 0.5441345963 | D42: 0.114206428 | E42: 0.2675977998 | F42: =_xlfn.NORM.S.INV(B42) -> 0.6357774907 | G42: =_xlfn.NORM.S.INV(C42) -> 0.1108556594 | H42: =_xlfn.NORM.S.INV(D42) -> -1.204457353 | I42: -0.6200944597 | J42: 0.4450442435 | K42: 0.1880604088 | L42: -0.1400948497 | M42: -0.007050697403 | N42: =$B$2+J42 -> 20.44504424 | O42: =$C$2+K42 -> 10.18806041 | P42: =$D$2+L42 -> 4.85990515 | Q42: 2.492949303
A43: 24 | B43: 0.4766903358 | C43: 0.3463487478 | D43: 0.3685304444 | E43: 0.5040568422 | F43: =_xlfn.NORM.S.INV(B43) -> -0.05846194804 | G43: =_xlfn.NORM.S.INV(C43) -> -0.3951970147 | H43: =_xlfn.NORM.S.INV(D43) -> -0.3357480229 | I43: 0.01016917063 | J43: -0.04092336362 | K43: -0.1404939122 | L43: -0.07327333129 | M43: 0.001865686515 | N43: =$B$2+J43 -> 19.95907664 | O43: =$C$2+K43 -> 9.859506088 | P43: =$D$2+L43 -> 4.926726669 | Q43: 2.501865687
A44: 25 | B44: 0.6923980907 | C44: 0.3817319737 | D44: 0.3878774935 | E44: 0.3561734091 | F44: =_xlfn.NORM.S.INV(B44) -> 0.5026593152 | G44: =_xlfn.NORM.S.INV(C44) -> -0.3009351484 | H44: =_xlfn.NORM.S.INV(D44) -> -0.2848553212 | I44: -0.3687060776 | J44: 0.3518615206 | K44: 0.02433898817 | L44: -0.006081649238 | M44: 0.0004990503531 | N44: =$B$2+J44 -> 20.35186152 | O44: =$C$2+K44 -> 10.02433899 | P44: =$D$2+L44 -> 4.993918351 | Q44: 2.50049905
A45: 26 | B45: 0.6374332138 | C45: 0.1377704497 | D45: 0.7522894822 | E45: 0.5198635177 | F45: =_xlfn.NORM.S.INV(B45) -> 0.3516062566 | G45: =_xlfn.NORM.S.INV(C45) -> -1.090391103 | H45: =_xlfn.NORM.S.INV(D45) -> 0.6817120671 | I45: 0.04981104558 | J45: 0.2461243796 | K45: -0.2645396513 | L45: 0.1247462964 | M45: 0.0219696429 | N45: =$B$2+J45 -> 20.24612438 | O45: =$C$2+K45 -> 9.735460349 | P45: =$D$2+L45 -> 5.124746296 | Q45: 2.521969643
A46: 27 | B46: 0.2826303246 | C46: 0.9830291404 | D46: 0.2025020502 | E46: 0.4385711052 | F46: =_xlfn.NORM.S.INV(B46) -> -0.5750453168 | G46: =_xlfn.NORM.S.INV(C46) -> 2.120763388 | H46: =_xlfn.NORM.S.INV(D46) -> -0.8327174505 | I46: -0.1545929726 | J46: -0.4025317217 | K46: 0.5406334083 | L46: -0.147213218 | M46: -0.04558353705 | N46: =$B$2+J46 -> 19.59746828 | O46: =$C$2+K46 -> 10.54063341 | P46: =$D$2+L46 -> 4.852786782 | Q46: 2.454416463
A47: 28 | B47: 0.9561679668 | C47: 0.1518659526 | D47: 0.4472879759 | E47: 0.366692549 | F47: =_xlfn.NORM.S.INV(B47) -> 1.707850606 | G47: =_xlfn.NORM.S.INV(C47) -> -1.028463386 | H47: =_xlfn.NORM.S.INV(D47) -> -0.1325162741 | I47: -0.3406260739 | J47: 1.195495424 | K47: 0.08077586169 | L47: 0.1223601865 | M47: 0.07059430212 | N47: =$B$2+J47 -> 21.19549542 | O47: =$C$2+K47 -> 10.08077586 | P47: =$D$2+L47 -> 5.122360187 | Q47: 2.570594302
A48: 29 | B48: 0.6584466693 | C48: 0.01666828638 | D48: 0.7052834265 | E48: 0.1327323802 | F48: =_xlfn.NORM.S.INV(B48) -> 0.4082274987 | G48: =_xlfn.NORM.S.INV(C48) -> -2.128006161 | H48: =_xlfn.NORM.S.INV(D48) -> 0.5396576559 | I48: -1.113567535 | J48: 0.2857592491 | K48: -0.5829873719 | L48: 0.08011991807 | M48: -0.0664525869 | N48: =$B$2+J48 -> 20.28575925 | O48: =$C$2+K48 -> 9.417012628 | P48: =$D$2+L48 -> 5.080119918 | Q48: 2.433547413
A49: 30 | B49: 0.1118704258 | C49: 0.912238201 | D49: 0.6809886168 | E49: 0.04744698139 | F49: =_xlfn.NORM.S.INV(B49) -> -1.216640959 | G49: =_xlfn.NORM.S.INV(C49) -> 1.354667246 | H49: =_xlfn.NORM.S.INV(D49) -> 0.4704650951 | I49: -1.670128397 | J49: -0.8516486716 | K49: 0.1414996883 | L49: -0.007159697495 | M49: -0.2145227946 | N49: =$B$2+J49 -> 19.14835133 | O49: =$C$2+K49 -> 10.14149969 | P49: =$D$2+L49 -> 4.992840303 | Q49: 2.285477205
A50: 31 | B50: 0.7940840006 | C50: 0.9553379743 | D50: 0.5004176359 | E50: 0.6448473194 | F50: =_xlfn.NORM.S.INV(B50) -> 0.8206739747 | G50: =_xlfn.NORM.S.INV(C50) -> 1.698974165 | H50: =_xlfn.NORM.S.INV(D50) -> 0.001046858182 | I50: 0.3714460108 | J50: 0.5744717823 | K50: 0.7406334868 | L50: 0.1247211831 | M50: 0.06959774551 | N50: =$B$2+J50 -> 20.57447178 | O50: =$C$2+K50 -> 10.74063349 | P50: =$D$2+L50 -> 5.124721183 | Q50: 2.569597746
A51: 32 | B51: 0.4865035361 | C51: 0.5537941702 | D51: 0.4599494284 | E51: 0.6341795266 | F51: =_xlfn.NORM.S.INV(B51) -> -0.03383707388 | G51: =_xlfn.NORM.S.INV(C51) -> 0.1352532333 | H51: =_xlfn.NORM.S.INV(D51) -> -0.1005611264 | I51: 0.3429435251 | J51: -0.02368595172 | K51: 0.03516013692 | L51: -0.01723855362 | M51: 0.0269307703 | N51: =$B$2+J51 -> 19.97631405 | O51: =$C$2+K51 -> 10.03516014 | P51: =$D$2+L51 -> 4.982761446 | Q51: 2.52693077
A52: 33 | B52: 0.2653515825 | C52: 0.7763855832 | D52: 0.8698513505 | E52: 0.3608942375 | F52: =_xlfn.NORM.S.INV(B52) -> -0.6269329843 | G52: =_xlfn.NORM.S.INV(C52) -> 0.7600430816 | H52: =_xlfn.NORM.S.INV(D52) -> 1.125688722 | I52: -0.3560695572 | J52: -0.438853089 | K52: 0.09274986987 | L52: 0.1492508256 | M52: -0.07613138228 | N52: =$B$2+J52 -> 19.56114691 | O52: =$C$2+K52 -> 10.09274987 | P52: =$D$2+L52 -> 5.149250826 | Q52: 2.423868618
A53: 34 | B53: 0.01609013738 | C53: 0.06087893278 | D53: 0.4752464292 | E53: 0.2512300075 | F53: =_xlfn.NORM.S.INV(B53) -> -2.142164156 | G53: =_xlfn.NORM.S.INV(C53) -> -1.547437164 | H53: =_xlfn.NORM.S.INV(D53) -> -0.06208786775 | I53: -0.6706241167 | J53: -1.499514909 | K53: -1.00929929 | L53: -0.2635442052 | M53: -0.1671872936 | N53: =$B$2+J53 -> 18.50048509 | O53: =$C$2+K53 -> 8.99070071 | P53: =$D$2+L53 -> 4.736455795 | Q53: 2.332812706
A54: 35 | B54: 0.7005098 | C54: 0.235144271 | D54: 0.9947341458 | E54: 0.507275349 | F54: =_xlfn.NORM.S.INV(B54) -> 0.5258673148 | G54: =_xlfn.NORM.S.INV(C54) -> -0.7220096541 | H54: =_xlfn.NORM.S.INV(D54) -> 2.557864621 | I54: 0.01823760659 | J54: 0.3681071204 | K54: -0.1048349338 | L54: 0.4729544862 | M54: 0.01215744708 | N54: =$B$2+J54 -> 20.36810712 | O54: =$C$2+K54 -> 9.895165066 | P54: =$D$2+L54 -> 5.472954486 | Q54: 2.512157447
A55: 36 | B55: 0.07247637112 | C55: 0.6809807814 | D55: 0.4248182 | E55: 0.08070239054 | F55: =_xlfn.NORM.S.INV(B55) -> -1.457593065 | G55: =_xlfn.NORM.S.INV(C55) -> 0.4704431564 | H55: =_xlfn.NORM.S.INV(D55) -> -0.1895823742 | I55: -1.400362542 | J55: -1.020315146 | K55: -0.1992805256 | L55: -0.1664926466 | M55: -0.1966455771 | N55: =$B$2+J55 -> 18.97968485 | O55: =$C$2+K55 -> 9.800719474 | P55: =$D$2+L55 -> 4.833507353 | Q55: 2.303354423
A56: 37 | B56: 0.9937099109 | C56: 0.7018497723 | D56: 0.9716215572 | E56: 0.1042429208 | F56: =_xlfn.NORM.S.INV(B56) -> 2.495437878 | G56: =_xlfn.NORM.S.INV(C56) -> 0.5297281098 | H56: =_xlfn.NORM.S.INV(D56) -> 1.905178395 | I56: -1.257739888 | J56: 1.746806514 | K56: 0.7684180858 | L56: 0.5893345675 | M56: 0.01520317724 | N56: =$B$2+J56 -> 21.74680651 | O56: =$C$2+K56 -> 10.76841809 | P56: =$D$2+L56 -> 5.589334567 | Q56: 2.515203177
A57: 38 | B57: 0.3985945318 | C57: 0.6498232455 | D57: 0.7372430535 | E57: 0.3551381367 | F57: =_xlfn.NORM.S.INV(B57) -> -0.2569866697 | G57: =_xlfn.NORM.S.INV(C57) -> 0.3848433099 | H57: =_xlfn.NORM.S.INV(D57) -> 0.6348689444 | I57: -0.3714850709 | J57: -0.1798906688 | K57: 0.06147305844 | L57: 0.09273895284 | M57: -0.05163012792 | N57: =$B$2+J57 -> 19.82010933 | O57: =$C$2+K57 -> 10.06147306 | P57: =$D$2+L57 -> 5.092738953 | Q57: 2.448369872
A58: 39 | B58: 0.06600830116 | C58: 0.2794931427 | D58: 0.7704387288 | E58: 0.949532247 | F58: =_xlfn.NORM.S.INV(B58) -> -1.506197027 | G58: =_xlfn.NORM.S.INV(C58) -> -0.5843478795 | H58: =_xlfn.NORM.S.INV(D58) -> 0.7402924809 | I58: 1.640335126 | J58: -1.054337919 | K58: -0.548478608 | L58: -0.0383422685 | M58: 0.04947018707 | N58: =$B$2+J58 -> 18.94566208 | O58: =$C$2+K58 -> 9.451521392 | P58: =$D$2+L58 -> 4.961657732 | Q58: 2.549470187
A59: 40 | B59: 0.8840567746 | C59: 0.8113784292 | D59: 0.8189773457 | E59: 0.2790934687 | F59: =_xlfn.NORM.S.INV(B59) -> 1.195513536 | G59: =_xlfn.NORM.S.INV(C59) -> 0.8829872846 | H59: =_xlfn.NORM.S.INV(D59) -> 0.911474703 | I59: -0.5855366401 | J59: 0.8368594754 | K59: 0.5694791798 | L59: 0.2978527998 | M59: 0.006347547232 | N59: =$B$2+J59 -> 20.83685948 | O59: =$C$2+K59 -> 10.56947918 | P59: =$D$2+L59 -> 5.2978528 | Q59: 2.506347547
A60: 41 | B60: 0.2604084059 | C60: 0.4216044792 | D60: 0.6958162354 | E60: 0.2748573316 | F60: =_xlfn.NORM.S.INV(B60) -> -0.6420868218 | G60: =_xlfn.NORM.S.INV(C60) -> -0.1977905265 | H60: =_xlfn.NORM.S.INV(D60) -> 0.5124050902 | I60: -0.5981877516 | J60: -0.4494607753 | K60: -0.2173938057 | L60: 0.01867278711 | M60: -0.08844362589 | N60: =$B$2+J60 -> 19.55053922 | O60: =$C$2+K60 -> 9.782606194 | P60: =$D$2+L60 -> 5.018672787 | Q60: 2.411556374
A61: 42 | B61: 0.9496117106 | C61: 0.03046089602 | D61: 0.5333939989 | E61: 0.3215943435 | F61: =_xlfn.NORM.S.INV(B61) -> 1.641100385 | G61: =_xlfn.NORM.S.INV(C61) -> -1.874062639 | H61: =_xlfn.NORM.S.INV(D61) -> 0.08380433393 | I61: -0.4632451076 | J61: 1.14877027 | K61: -0.205835952 | L61: 0.1316225354 | M61: 0.05813833511 | N61: =$B$2+J61 -> 21.14877027 | O61: =$C$2+K61 -> 9.794164048 | P61: =$D$2+L61 -> 5.131622535 | Q61: 2.558138335
A62: 43 | B62: 0.4362470559 | C62: 0.6551625273 | D62: 0.5100937781 | E62: 0.8053916398 | F62: =_xlfn.NORM.S.INV(B62) -> -0.1604912526 | G62: =_xlfn.NORM.S.INV(C62) -> 0.399296229 | H62: =_xlfn.NORM.S.INV(D62) -> 0.02530404975 | I62: 0.8610387155 | J62: -0.1123438768 | K62: 0.08925689265 | L62: -0.00172960541 | M62: 0.06095832552 | N62: =$B$2+J62 -> 19.88765612 | O62: =$C$2+K62 -> 10.08925689 | P62: =$D$2+L62 -> 4.998270395 | Q62: 2.560958326
A63: 44 | B63: 0.6455132126 | C63: 0.9333321412 | D63: 0.7682051842 | E63: 0.2440984133 | F63: =_xlfn.NORM.S.INV(B63) -> 0.3732349652 | G63: =_xlfn.NORM.S.INV(C63) -> 1.501076727 | H63: =_xlfn.NORM.S.INV(D63) -> 0.7329488425 | I63: -0.6931796354 | J63: 0.2612644757 | K63: 0.5699209442 | L63: 0.2004778463 | M63: -0.04866820536 | N63: =$B$2+J63 -> 20.26126448 | O63: =$C$2+K63 -> 10.56992094 | P63: =$D$2+L63 -> 5.200477846 | Q63: 2.451331795
A64: 45 | B64: 0.02300776181 | C64: 0.7351691539 | D64: 0.9303065336 | E64: 0.2872172979 | F64: =_xlfn.NORM.S.INV(B64) -> -1.995250886 | G64: =_xlfn.NORM.S.INV(C64) -> 0.62852253 | H64: =_xlfn.NORM.S.INV(D64) -> 1.478077885 | I64: -0.5615324786 | J64: -1.39667562 | K64: -0.2777330031 | L64: 0.06953052406 | M64: -0.1708461581 | N64: =$B$2+J64 -> 18.60332438 | O64: =$C$2+K64 -> 9.722266997 | P64: =$D$2+L64 -> 5.069530524 | Q64: 2.329153842
A65: 46 | B65: 0.4486674508 | C65: 0.7564308959 | D65: 0.2075213488 | E65: 0.2645366131 | F65: =_xlfn.NORM.S.INV(B65) -> -0.1290287477 | G65: =_xlfn.NORM.S.INV(C65) -> 0.6948677131 | H65: =_xlfn.NORM.S.INV(D65) -> -0.8150517344 | I65: -0.6294213776 | J65: -0.09032012338 | K65: 0.1913907688 | L65: -0.1352310492 | M65: -0.05527451521 | N65: =$B$2+J65 -> 19.90967988 | O65: =$C$2+K65 -> 10.19139077 | P65: =$D$2+L65 -> 4.864768951 | Q65: 2.444725485
A66: 47 | B66: 0.3589993586 | C66: 0.6742067576 | D66: 0.2836979509 | E66: 0.1337343242 | F66: =_xlfn.NORM.S.INV(B66) -> -0.3611347496 | G66: =_xlfn.NORM.S.INV(C66) -> 0.4515593155 | H66: =_xlfn.NORM.S.INV(D66) -> -0.5718908817 | I66: -1.108910837 | J66: -0.2527943247 | K66: 0.05782664106 | L66: -0.1228465892 | M66: -0.1089341001 | N66: =$B$2+J66 -> 19.74720568 | O66: =$C$2+K66 -> 10.05782664 | P66: =$D$2+L66 -> 4.877153411 | Q66: 2.3910659
A67: 48 | B67: 0.3581026604 | C67: 0.8780636461 | D67: 0.5015118843 | E67: 0.7131673982 | F67: =_xlfn.NORM.S.INV(B67) -> -0.3635349353 | G67: =_xlfn.NORM.S.INV(C67) -> 1.165361467 | H67: =_xlfn.NORM.S.INV(D67) -> 0.003789740942 | I67: 0.5626617961 | J67: -0.2544744547 | K67: 0.2856672851 | L67: -0.006569895244 | M67: 0.02232106222 | N67: =$B$2+J67 -> 19.74552555 | O67: =$C$2+K67 -> 10.28566729 | P67: =$D$2+L67 -> 4.993430105 | Q67: 2.522321062
A68: 49 | B68: 0.3182080409 | C68: 0.512291199 | D68: 0.5051361387 | E68: 0.2542608706 | F68: =_xlfn.NORM.S.INV(B68) -> -0.4727156189 | G68: =_xlfn.NORM.S.INV(C68) -> 0.03081434272 | H68: =_xlfn.NORM.S.INV(D68) -> 0.01287474604 | I68: -0.6611412383 | J68: -0.3309009333 | K68: -0.1035911589 | L68: -0.04429447185 | M68: -0.08111378357 | N68: =$B$2+J68 -> 19.66909907 | O68: =$C$2+K68 -> 9.896408841 | P68: =$D$2+L68 -> 4.955705528 | Q68: 2.418886216
A69: 50 | B69: 0.1725357833 | C69: 0.003116238089 | D69: 0.09008827982 | E69: 0.642884749 | F69: =_xlfn.NORM.S.INV(B69) -> -0.9441919531 | G69: =_xlfn.NORM.S.INV(C69) -> -2.735293055 | H69: =_xlfn.NORM.S.INV(D69) -> -1.340211605 | I69: 0.3661803524 | J69: -0.6609343672 | K69: -1.101899846 | L69: -0.3925137908 | M69: -0.0002736839614 | N69: =$B$2+J69 -> 19.33906563 | O69: =$C$2+K69 -> 8.898100154 | P69: =$D$2+L69 -> 4.607486209 | Q69: 2.499726316
A70: 51 | B70: 0.04182865142 | C70: 0.7196383294 | D70: 0.1246396978 | E70: 0.3843386841 | F70: =_xlfn.NORM.S.INV(B70) -> -1.729848745 | G70: =_xlfn.NORM.S.INV(C70) -> 0.581767436 | H70: =_xlfn.NORM.S.INV(D70) -> -1.15210143 | I70: -0.2941053955 | J70: -1.210894121 | K70: -0.2289981192 | L70: -0.3559108736 | M70: -0.1122894146 | N70: =$B$2+J70 -> 18.78910588 | O70: =$C$2+K70 -> 9.771001881 | P70: =$D$2+L70 -> 4.644089126 | Q70: 2.387710585
A71: 52 | B71: 0.1466007571 | C71: 0.3748179939 | D71: 0.9740190781 | E71: 0.4964874916 | F71: =_xlfn.NORM.S.INV(B71) -> -1.05112428 | G71: =_xlfn.NORM.S.INV(C71) -> -0.3191193805 | H71: =_xlfn.NORM.S.INV(D71) -> 1.943449728 | I71: -0.008804666689 | J71: -0.7357869957 | K71: -0.3543880289 | L71: 0.220016871 | M71: -0.07329198224 | N71: =$B$2+J71 -> 19.264213 | O71: =$C$2+K71 -> 9.645611971 | P71: =$D$2+L71 -> 5.220016871 | Q71: 2.426708018
A72: 53 | B72: 0.6779825588 | C72: 0.02251402621 | D72: 0.158557288 | E72: 0.9488174319 | F72: =_xlfn.NORM.S.INV(B72) -> 0.4620647573 | G72: =_xlfn.NORM.S.INV(C72) -> -2.00439231 | H72: =_xlfn.NORM.S.INV(D72) -> -1.000404949 | I72: 1.633494026 | J72: 0.3234453301 | K72: -0.5305099975 | L72: -0.1753727403 | M72: 0.1767639973 | N72: =$B$2+J72 -> 20.32344533 | O72: =$C$2+K72 -> 9.469490003 | P72: =$D$2+L72 -> 4.82462726 | Q72: 2.676763997
A73: 54 | B73: 0.8422876809 | C73: 0.482979059 | D73: 0.6904585173 | E73: 0.7453979209 | F73: =_xlfn.NORM.S.INV(B73) -> 1.003904519 | G73: =_xlfn.NORM.S.INV(C73) -> -0.04267812433 | H73: =_xlfn.NORM.S.INV(D73) -> 0.4971504427 | I73: 0.6600774043 | J73: 0.7027331632 | K73: 0.2272800847 | L73: 0.1845350847 | M73: 0.1061006286 | N73: =$B$2+J73 -> 20.70273316 | O73: =$C$2+K73 -> 10.22728008 | P73: =$D$2+L73 -> 5.184535085 | Q73: 2.606100629
A74: 55 | B74: 0.3646300307 | C74: 0.4950733404 | D74: 0.400385424 | E74: 0.7717781998 | F74: =_xlfn.NORM.S.INV(B74) -> -0.3461099828 | G74: =_xlfn.NORM.S.INV(C74) -> -0.01234961811 | H74: =_xlfn.NORM.S.INV(D74) -> -0.2523496065 | I74: 0.7447157092 | J74: -0.2422769879 | K74: -0.08701827366 | L74: -0.07817246128 | M74: 0.0449130212 | N74: =$B$2+J74 -> 19.75772301 | O74: =$C$2+K74 -> 9.912981726 | P74: =$D$2+L74 -> 4.921827539 | Q74: 2.544913021
A75: 56 | B75: 0.8394752974 | C75: 0.9268280113 | D75: 0.3934669918 | E75: 0.1967026817 | F75: =_xlfn.NORM.S.INV(B75) -> 0.9923036874 | G75: =_xlfn.NORM.S.INV(C75) -> 1.452567132 | H75: =_xlfn.NORM.S.INV(D75) -> -0.2702941265 | I75: -0.8534580108 | J75: 0.6946125812 | K75: 0.7029743673 | L75: 0.08921613375 | M75: -0.01951359938 | N75: =$B$2+J75 -> 20.69461258 | O75: =$C$2+K75 -> 10.70297437 | P75: =$D$2+L75 -> 5.089216134 | Q75: 2.480486401
A76: 57 | B76: 0.6150910867 | C76: 0.3115055558 | D76: 0.2051431549 | E76: 0.7153075244 | F76: =_xlfn.NORM.S.INV(B76) -> 0.2926131954 | G76: =_xlfn.NORM.S.INV(C76) -> -0.4915873166 | H76: =_xlfn.NORM.S.INV(D76) -> -0.823389891 | I76: 0.5689575459 | J76: 0.2048292368 | K76: -0.0870807744 | L76: -0.1241573907 | M76: 0.07193241702 | N76: =$B$2+J76 -> 20.20482924 | O76: =$C$2+K76 -> 9.912919226 | P76: =$D$2+L76 -> 4.875842609 | Q76: 2.571932417
A77: 58 | B77: 0.6385923039 | C77: 0.5584332158 | D77: 0.2904169791 | E77: 0.3145674166 | F77: =_xlfn.NORM.S.INV(B77) -> 0.3546986102 | G77: =_xlfn.NORM.S.INV(C77) -> 0.1469980388 | H77: =_xlfn.NORM.S.INV(D77) -> -0.5521669755 | I77: -0.4829449374 | J77: 0.2482890271 | K77: 0.1321670389 | L77: -0.05549660761 | M77: -0.01661029654 | N77: =$B$2+J77 -> 20.24828903 | O77: =$C$2+K77 -> 10.13216704 | P77: =$D$2+L77 -> 4.944503392 | Q77: 2.483389703
A78: 59 | B78: 0.3058746996 | C78: 0.9902877101 | D78: 0.7632000588 | E78: 0.9046511277 | F78: =_xlfn.NORM.S.INV(B78) -> -0.5075778906 | G78: =_xlfn.NORM.S.INV(C78) -> 2.337280961 | H78: =_xlfn.NORM.S.INV(D78) -> 0.7166341251 | I78: 1.30851779 | J78: -0.3553045234 | K78: 0.6261112137 | L78: 0.130505324 | M78: 0.06608211614 | N78: =$B$2+J78 -> 19.64469548 | O78: =$C$2+K78 -> 10.62611121 | P78: =$D$2+L78 -> 5.130505324 | Q78: 2.566082116
A79: 60 | B79: 0.4369359788 | C79: 0.7869734204 | D79: 0.7037813137 | E79: 0.5552578883 | F79: =_xlfn.NORM.S.INV(B79) -> -0.1587422397 | G79: =_xlfn.NORM.S.INV(C79) -> 0.7959636576 | H79: =_xlfn.NORM.S.INV(D79) -> 0.5353073097 | I79: 0.1389568796 | J79: -0.1111195678 | K79: 0.2166102329 | L79: 0.09577654034 | M79: -0.004570518043 | N79: =$B$2+J79 -> 19.88888043 | O79: =$C$2+K79 -> 10.21661023 | P79: =$D$2+L79 -> 5.09577654 | Q79: 2.495429482
A80: 61 | B80: 0.4245950656 | C80: 0.643162235 | D80: 0.2527167635 | E80: 0.2429841774 | F80: =_xlfn.NORM.S.INV(B80) -> -0.1901518621 | G80: =_xlfn.NORM.S.INV(C80) -> 0.3669242396 | H80: =_xlfn.NORM.S.INV(D80) -> -0.665964914 | I80: -0.6967354731 | J80: -0.1331063035 | K80: 0.07177930975 | L80: -0.1239884665 | M80: -0.06421869565 | N80: =$B$2+J80 -> 19.8668937 | O80: =$C$2+K80 -> 10.07177931 | P80: =$D$2+L80 -> 4.876011534 | Q80: 2.435781304
A81: 62 | B81: 0.1261557351 | C81: 0.9415889012 | D81: 0.8349552729 | E81: 0.4872820932 | F81: =_xlfn.NORM.S.INV(B81) -> -1.144753047 | G81: =_xlfn.NORM.S.INV(C81) -> 1.568252581 | H81: =_xlfn.NORM.S.INV(D81) -> 0.973933711 | I81: -0.03188446636 | J81: -0.8013271329 | K81: 0.2271000948 | L81: 0.0916632479 | M81: -0.07948069695 | N81: =$B$2+J81 -> 19.19867287 | O81: =$C$2+K81 -> 10.22710009 | P81: =$D$2+L81 -> 5.091663248 | Q81: 2.420519303
A82: 63 | B82: 0.06524961965 | C82: 0.5905243028 | D82: 0.7118902551 | E82: 0.8937066854 | F82: =_xlfn.NORM.S.INV(B82) -> -1.512136114 | G82: =_xlfn.NORM.S.INV(C82) -> 0.2288938839 | H82: =_xlfn.NORM.S.INV(D82) -> 0.5589153545 | I82: 1.246484355 | J82: -1.05849528 | K82: -0.2896666245 | L82: -0.04969317252 | M82: 0.01488142014 | N82: =$B$2+J82 -> 18.94150472 | O82: =$C$2+K82 -> 9.710333376 | P82: =$D$2+L82 -> 4.950306827 | Q82: 2.51488142
A83: 64 | B83: 0.1311447287 | C83: 0.386660152 | D83: 0.1051030197 | E83: 0.4468391698 | F83: =_xlfn.NORM.S.INV(B83) -> -1.120996253 | G83: =_xlfn.NORM.S.INV(C83) -> -0.288034534 | H83: =_xlfn.NORM.S.INV(D83) -> -1.252999086 | I83: -0.1336512709 | J83: -0.7846973771 | K83: -0.3612101516 | L83: -0.334064532 | M83: -0.06139072993 | N83: =$B$2+J83 -> 19.21530262 | O83: =$C$2+K83 -> 9.638789848 | P83: =$D$2+L83 -> 4.665935468 | Q83: 2.43860927
A84: 65 | B84: 0.4555543187 | C84: 0.352763478 | D84: 0.6906651647 | E84: 0.1214805116 | F84: =_xlfn.NORM.S.INV(B84) -> -0.1116402743 | G84: =_xlfn.NORM.S.INV(C84) -> -0.3778702875 | H84: =_xlfn.NORM.S.INV(D84) -> 0.4977366524 | I84: -1.167617661 | J84: -0.07814819204 | K84: -0.1477121578 | L84: 0.0647012776 | M84: -0.1057520401 | N84: =$B$2+J84 -> 19.92185181 | O84: =$C$2+K84 -> 9.852287842 | P84: =$D$2+L84 -> 5.064701278 | Q84: 2.39424796
A85: 66 | B85: 0.7571689914 | C85: 0.5189095698 | D85: 0.8244906807 | E85: 0.03526092778 | F85: =_xlfn.NORM.S.INV(B85) -> 0.6972249659 | G85: =_xlfn.NORM.S.INV(C85) -> 0.04741702476 | H85: =_xlfn.NORM.S.INV(D85) -> 0.932615285 | I85: =_xlfn.NORM.S.INV(E85) -> -1.808544126 | J85: 0.4880574761 | K85: 0.1825074397 | L85: 0.2307581821 | M85: -0.1196422576 | N85: =$B$2+J85 -> 20.48805748 | O85: =$C$2+K85 -> 10.18250744 | P85: =$D$2+L85 -> 5.230758182 | Q85: =$E$2+M85 -> 2.380357742
A86: =$A85+1 -> 67 | B86: 0.6248599623 | C86: 0.7492844129 | D86: 0.441635511 | E86: 0.7485215808 | F86: =_xlfn.NORM.S.INV(B86) -> 0.3182700833 | G86: =_xlfn.NORM.S.INV(C86) -> 0.6722396006 | H86: =_xlfn.NORM.S.INV(D86) -> -0.1468238969 | I86: 0.6698446319 | J86: 0.2227890583 | K86: 0.2915014922 | L86: 0.02346738242 | M86: 0.07180449157 | N86: =$B$2+J86 -> 20.22278906 | O86: =$C$2+K86 -> 10.29150149 | P86: =$D$2+L86 -> 5.023467382 | Q86: 2.571804492
A87: 68 | B87: 0.7183655389 | C87: 0.08213298923 | D87: 0.07055332022 | E87: 0.4852397602 | F87: =_xlfn.NORM.S.INV(B87) -> 0.577992886 | G87: =_xlfn.NORM.S.INV(C87) -> -1.390866284 | H87: =_xlfn.NORM.S.INV(D87) -> -1.471682482 | I87: -0.03700687961 | J87: 0.4045950202 | K87: -0.3063589183 | L87: -0.2292187458 | M87: 0.04600775769 | N87: =$B$2+J87 -> 20.40459502 | O87: =$C$2+K87 -> 9.693641082 | P87: =$D$2+L87 -> 4.770781254 | Q87: 2.546007758
A88: 69 | B88: 0.9424691194 | C88: 0.5506236667 | D88: 0.5464776641 | E88: 0.1355950576 | F88: =_xlfn.NORM.S.INV(B88) -> 1.575843992 | G88: =_xlfn.NORM.S.INV(C88) -> 0.1272371958 | H88: =_xlfn.NORM.S.INV(D88) -> 0.1167670294 | I88: -1.100325983 | J88: 1.103090794 | K88: 0.4189184607 | L88: 0.1807791979 | M88: -0.006121647464 | N88: =$B$2+J88 -> 21.10309079 | O88: =$C$2+K88 -> 10.41891846 | P88: =$D$2+L88 -> 5.180779198 | Q88: 2.493878353
A89: 70 | B89: 0.6933479163 | C89: 0.4976705401 | D89: 0.2832692121 | E89: 0.691915043 | F89: =_xlfn.NORM.S.INV(B89) -> 0.505362621 | G89: =_xlfn.NORM.S.INV(C89) -> -0.005839123119 | H89: =_xlfn.NORM.S.INV(D89) -> -0.5731569586 | I89: 0.5012859186 | J89: 0.3537538347 | K89: 0.1194185096 | L89: -0.04784881868 | M89: 0.07414030364 | N89: =$B$2+J89 -> 20.35375383 | O89: =$C$2+K89 -> 10.11941851 | P89: =$D$2+L89 -> 4.952151181 | Q89: 2.574140304
A90: 71 | B90: 0.6532192717 | C90: 0.3788537074 | D90: 0.8113954208 | E90: 0.9844843637 | F90: =_xlfn.NORM.S.INV(B90) -> 0.3940265242 | G90: =_xlfn.NORM.S.INV(C90) -> -0.3084927516 | H90: =_xlfn.NORM.S.INV(D90) -> 0.883050183 | I90: 2.156671456 | J90: 0.275818567 | K90: -0.004151314688 | L90: 0.183045135 | M90: 0.1946470859 | N90: =$B$2+J90 -> 20.27581857 | O90: =$C$2+K90 -> 9.995848685 | P90: =$D$2+L90 -> 5.183045135 | Q90: 2.694647086
A91: 72 | B91: 0.673031312 | C91: 0.2103593321 | D91: 0.1064358869 | E91: 0.4264602932 | F91: =_xlfn.NORM.S.INV(B91) -> 0.448299064 | G91: =_xlfn.NORM.S.INV(C91) -> -0.8051750634 | H91: =_xlfn.NORM.S.INV(D91) -> -1.245707569 | I91: -0.1853932704 | J91: 0.3138093448 | K91: -0.1500642449 | L91: -0.1888137476 | M91: 0.02250392859 | N91: =$B$2+J91 -> 20.31380934 | O91: =$C$2+K91 -> 9.849935755 | P91: =$D$2+L91 -> 4.811186252 | Q91: 2.522503929
A92: 73 | B92: 0.4539220532 | C92: 0.4866636784 | D92: 0.1910861203 | E92: 0.5476314383 | F92: =_xlfn.NORM.S.INV(B92) -> -0.115758292 | G92: =_xlfn.NORM.S.INV(C92) -> -0.03343542943 | H92: =_xlfn.NORM.S.INV(D92) -> -0.8739008706 | I92: 0.1196793951 | J92: -0.08103080443 | K92: -0.03848132751 | L92: -0.1621983242 | M92: 0.01086568687 | N92: =$B$2+J92 -> 19.9189692 | O92: =$C$2+K92 -> 9.961518672 | P92: =$D$2+L92 -> 4.837801676 | Q92: 2.510865687
A93: 74 | B93: 0.4840777681 | C93: 0.5794027817 | D93: 0.368991516 | E93: 0.7824971506 | F93: =_xlfn.NORM.S.INV(B93) -> -0.0399217183 | G93: =_xlfn.NORM.S.INV(C93) -> 0.2003658872 | H93: =_xlfn.NORM.S.INV(D93) -> -0.3345255264 | I93: 0.7806545499 | J93: -0.02794520281 | K93: 0.05453587151 | L93: -0.05632069987 | M93: 0.06461386788 | N93: =$B$2+J93 -> 19.9720548 | O93: =$C$2+K93 -> 10.05453587 | P93: =$D$2+L93 -> 4.9436793 | Q93: 2.564613868
A94: 75 | B94: 0.7391492005 | C94: 0.4588049537 | D94: 0.5543655166 | E94: 0.2437898867 | F94: =_xlfn.NORM.S.INV(B94) -> 0.6407246451 | G94: =_xlfn.NORM.S.INV(C94) -> -0.1034448633 | H94: =_xlfn.NORM.S.INV(D94) -> 0.1366986877 | I94: -0.6941633509 | J94: 0.4485072516 | K94: 0.1206715586 | L94: 0.08491649801 | M94: -0.02312882004 | N94: =$B$2+J94 -> 20.44850725 | O94: =$C$2+K94 -> 10.12067156 | P94: =$D$2+L94 -> 5.084916498 | Q94: 2.47687118
A95: 76 | B95: 0.2115598502 | C95: 0.7963888388 | D95: 0.6639060839 | E95: 0.7815254988 | F95: =_xlfn.NORM.S.INV(B95) -> -0.8010206343 | G95: =_xlfn.NORM.S.INV(C95) -> 0.828791635 | H95: =_xlfn.NORM.S.INV(D95) -> 0.4231472476 | I95: 0.7773555961 | J95: -0.560714444 | K95: 0.07296837096 | L95: 0.01314516568 | M95: 0.01390629606 | N95: =$B$2+J95 -> 19.43928556 | O95: =$C$2+K95 -> 10.07296837 | P95: =$D$2+L95 -> 5.013145166 | Q95: 2.513906296
A96: 77 | B96: 0.4039142232 | C96: 0.4192113651 | D96: 0.3087762098 | E96: 0.6811933086 | F96: =_xlfn.NORM.S.INV(B96) -> -0.2432284269 | G96: =_xlfn.NORM.S.INV(C96) -> -0.2039114078 | H96: =_xlfn.NORM.S.INV(D96) -> -0.4993221979 | I96: 0.4710383025 | J96: -0.1702598988 | K96: -0.1236264729 | L96: -0.1150044526 | M96: 0.03059336118 | N96: =$B$2+J96 -> 19.8297401 | O96: =$C$2+K96 -> 9.876373527 | P96: =$D$2+L96 -> 4.884995547 | Q96: 2.530593361
A97: 78 | B97: 0.606606366 | C97: 0.07326936601 | D97: 0.2330118817 | E97: 0.2124341981 | F97: =_xlfn.NORM.S.INV(B97) -> 0.2704848535 | G97: =_xlfn.NORM.S.INV(C97) -> -1.451866489 | H97: =_xlfn.NORM.S.INV(D97) -> -0.7289638701 | I97: -0.7980036084 | J97: 0.1893393974 | K97: -0.3996809116 | L97: -0.1341925842 | M97: -0.03995440166 | N97: =$B$2+J97 -> 20.1893394 | O97: =$C$2+K97 -> 9.600319088 | P97: =$D$2+L97 -> 4.865807416 | Q97: 2.460045598
A98: 79 | B98: 0.03347792996 | C98: 0.6629616039 | D98: 0.8005408449 | E98: 0.9187840426 | F98: =_xlfn.NORM.S.INV(B98) -> -1.831970204 | G98: =_xlfn.NORM.S.INV(C98) -> 0.4205594734 | H98: =_xlfn.NORM.S.INV(D98) -> 0.8435546588 | I98: 1.396939002 | J98: -1.282379143 | K98: -0.3050938175 | L98: -0.02809776506 | M98: 0.006728310596 | N98: =$B$2+J98 -> 18.71762086 | O98: =$C$2+K98 -> 9.694906183 | P98: =$D$2+L98 -> 4.971902235 | Q98: 2.506728311
A99: 80 | B99: 0.794533919 | C99: 0.5995134554 | D99: 0.1648871178 | E99: 0.5648462405 | F99: =_xlfn.NORM.S.INV(B99) -> 0.8222543324 | G99: =_xlfn.NORM.S.INV(C99) -> 0.252087943 | H99: =_xlfn.NORM.S.INV(D99) -> -0.9745687206 | I99: 0.1632678846 | J99: 0.5755780327 | K99: 0.2780091815 | L99: -0.0785134469 | M99: 0.06583070331 | N99: =$B$2+J99 -> 20.57557803 | O99: =$C$2+K99 -> 10.27800918 | P99: =$D$2+L99 -> 4.921486553 | Q99: 2.565830703
A100: 81 | B100: 0.4293003053 | C100: 0.0357222757 | D100: 0.6888698112 | E100: 0.6983707183 | F100: =_xlfn.NORM.S.INV(B100) -> -0.178155813 | G100: =_xlfn.NORM.S.INV(C100) -> -1.802641396 | H100: =_xlfn.NORM.S.INV(D100) -> 0.4926493418 | I100: 0.5197202608 | J100: -0.1247090691 | K100: -0.6196026418 | L100: 0.02155848099 | M100: 0.03607053074 | N100: =$B$2+J100 -> 19.87529093 | O100: =$C$2+K100 -> 9.380397358 | P100: =$D$2+L100 -> 5.021558481 | Q100: 2.536070531
A101: 82 | B101: 0.7808128019 | C101: 0.3940734796 | D101: 0.9041973545 | E101: 0.01484081369 | F101: =_xlfn.NORM.S.INV(B101) -> 0.7749412156 | G101: =_xlfn.NORM.S.INV(C101) -> -0.2687176622 | H101: =_xlfn.NORM.S.INV(D101) -> 1.305844949 | I101: -2.174313125 | J101: 0.5424588509 | K101: 0.09999623986 | L101: 0.2945980042 | M101: -0.1476137393 | N101: =$B$2+J101 -> 20.54245885 | O101: =$C$2+K101 -> 10.09999624 | P101: =$D$2+L101 -> 5.294598004 | Q101: 2.352386261
A102: 83 | B102: 0.149437417 | C102: 0.4959273695 | D102: 0.1248680448 | E102: 0.2954962135 | F102: =_xlfn.NORM.S.INV(B102) -> -1.038849289 | G102: =_xlfn.NORM.S.INV(C102) -> -0.0102087482 | H102: =_xlfn.NORM.S.INV(D102) -> -1.150990632 | I102: -0.5373984308 | J102: -0.7271945023 | K102: -0.2525906288 | L102: -0.3014199419 | M102: -0.09227378197 | N102: =$B$2+J102 -> 19.2728055 | O102: =$C$2+K102 -> 9.747409371 | P102: =$D$2+L102 -> 4.698580058 | Q102: 2.407726218
A103: 84 | B103: 0.7681906322 | C103: 0.523907884 | D103: 0.1355860609 | E103: 0.2299667807 | F103: =_xlfn.NORM.S.INV(B103) -> 0.7329011271 | G103: =_xlfn.NORM.S.INV(C103) -> 0.05996409399 | H103: =_xlfn.NORM.S.INV(D103) -> -1.100367296 | I103: -0.7389562543 | J103: 0.5130307889 | K103: 0.1950847806 | L103: -0.1138137395 | M103: -0.01224095962 | N103: =$B$2+J103 -> 20.51303079 | O103: =$C$2+K103 -> 10.19508478 | P103: =$D$2+L103 -> 4.886186261 | Q103: 2.48775904
A104: 85 | B104: 0.6736736772 | C104: 0.6661826927 | D104: 0.9009728541 | E104: 0.1616701069 | F104: =_xlfn.NORM.S.INV(B104) -> 0.4500801548 | G104: =_xlfn.NORM.S.INV(C104) -> 0.4293966178 | H104: =_xlfn.NORM.S.INV(D104) -> 1.287114759 | I104: -0.9876170888 | J104: 0.3150561084 | K104: 0.2454261549 | L104: 0.2763544006 | M104: -0.06941634834 | N104: =$B$2+J104 -> 20.31505611 | O104: =$C$2+K104 -> 10.24542615 | P104: =$D$2+L104 -> 5.276354401 | Q104: 2.430583652
A105: 86 | B105: 0.9842242746 | C105: 0.7442687441 | D105: 0.8658462825 | E105: 0.6789223421 | F105: =_xlfn.NORM.S.INV(B105) -> 2.150047588 | G105: =_xlfn.NORM.S.INV(C105) -> 0.6565621208 | H105: =_xlfn.NORM.S.INV(D105) -> 1.106968761 | I105: 0.4646874236 | J105: 1.505033312 | K105: 0.7261112999 | L105: 0.4211532574 | M105: 0.1452900088 | N105: =$B$2+J105 -> 21.50503331 | O105: =$C$2+K105 -> 10.7261113 | P105: =$D$2+L105 -> 5.421153257 | Q105: 2.645290009
A106: 87 | B106: 0.1380744233 | C106: 0.0229403916 | D106: 0.8734366946 | E106: 0.8882742431 | F106: =_xlfn.NORM.S.INV(B106) -> -1.089011427 | G106: =_xlfn.NORM.S.INV(C106) -> -1.996488436 | H106: =_xlfn.NORM.S.INV(D106) -> 1.142788027 | I106: 1.217401444 | J106: -0.7623079988 | K106: -0.9002390421 | L106: 0.03706051431 | M106: 0.03929314877 | N106: =$B$2+J106 -> 19.237692 | O106: =$C$2+K106 -> 9.099760958 | P106: =$D$2+L106 -> 5.037060514 | Q106: 2.539293149
A107: 88 | B107: 0.7663668977 | C107: 0.7626738974 | D107: 0.9344001212 | E107: 0.9066420015 | F107: =_xlfn.NORM.S.INV(B107) -> 0.7269342992 | G107: =_xlfn.NORM.S.INV(C107) -> 0.7149301508 | H107: =_xlfn.NORM.S.INV(D107) -> 1.50938761 | I107: 1.320356569 | J107: 0.5088540094 | K107: 0.4032418801 | L107: 0.34927572 | M107: 0.1345425892 | N107: =$B$2+J107 -> 20.50885401 | O107: =$C$2+K107 -> 10.40324188 | P107: =$D$2+L107 -> 5.34927572 | Q107: 2.634542589
A108: 89 | B108: 0.5294471294 | C108: 0.8923508046 | D108: 0.8095484264 | E108: 0.6971515481 | F108: =_xlfn.NORM.S.INV(B108) -> 0.07388016195 | G108: =_xlfn.NORM.S.INV(C108) -> 1.239127212 | H108: =_xlfn.NORM.S.INV(D108) -> 0.8762334284 | I108: 0.5162255263 | J108: 0.05171611337 | K108: 0.4142519468 | L108: 0.1885526061 | M108: 0.0350884472 | N108: =$B$2+J108 -> 20.05171611 | O108: =$C$2+K108 -> 10.41425195 | P108: =$D$2+L108 -> 5.188552606 | Q108: 2.535088447
A109: 90 | B109: 0.09729270924 | C109: 0.182606956 | D109: 0.6852926173 | E109: 0.1930030899 | F109: =_xlfn.NORM.S.INV(B109) -> -1.29713303 | G109: =_xlfn.NORM.S.INV(C109) -> -0.9054747856 | H109: =_xlfn.NORM.S.INV(D109) -> 0.4825507362 | I109: -0.8668828891 | J109: -0.907993121 | K109: -0.6010638586 | L109: -0.06964097645 | M109: -0.1438816193 | N109: =$B$2+J109 -> 19.09200688 | O109: =$C$2+K109 -> 9.398936141 | P109: =$D$2+L109 -> 4.930359024 | Q109: 2.356118381
A110: 91 | B110: 0.6419706911 | C110: 0.2682005202 | D110: 0.9421923382 | E110: 0.8414228237 | F110: =_xlfn.NORM.S.INV(B110) -> 0.3637313672 | G110: =_xlfn.NORM.S.INV(C110) -> -0.6182644369 | H110: =_xlfn.NORM.S.INV(D110) -> 1.57344712 | I110: 1.000322726 | J110: 0.254611957 | K110: -0.1105490917 | L110: 0.2906053621 | M110: 0.09246853584 | N110: =$B$2+J110 -> 20.25461196 | O110: =$C$2+K110 -> 9.889450908 | P110: =$D$2+L110 -> 5.290605362 | Q110: 2.592468536
A111: 92 | B111: 0.7257010479 | C111: 0.8136533062 | D111: 0.6986112622 | E111: 0.6592811398 | F111: =_xlfn.NORM.S.INV(B111) -> 0.5998624578 | G111: =_xlfn.NORM.S.INV(C111) -> 0.8914395879 | H111: =_xlfn.NORM.S.INV(D111) -> 0.5204105253 | I111: 0.4105020221 | J111: 0.4199037204 | K111: 0.429227658 | L111: 0.1714705995 | M111: 0.0594627823 | N111: =$B$2+J111 -> 20.41990372 | O111: =$C$2+K111 -> 10.42922766 | P111: =$D$2+L111 -> 5.1714706 | Q111: 2.559462782
A112: 93 | B112: 0.42969283 | C112: 0.5003372856 | D112: 0.002008409811 | E112: 0.01869466221 | F112: =_xlfn.NORM.S.INV(B112) -> -0.1771562492 | G112: =_xlfn.NORM.S.INV(C112) -> 0.0008454496619 | H112: =_xlfn.NORM.S.INV(D112) -> -2.876837836 | I112: -2.08148731 | J112: -0.1240093745 | K112: -0.04224695592 | L112: -0.5107844938 | M112: -0.1589643258 | N112: =$B$2+J112 -> 19.87599063 | O112: =$C$2+K112 -> 9.957753044 | P112: =$D$2+L112 -> 4.489215506 | Q112: 2.341035674
A113: 94 | B113: 0.1604010198 | C113: 0.1060322064 | D113: 0.4868658376 | E113: 0.4869339516 | F113: =_xlfn.NORM.S.INV(B113) -> -0.9928110589 | G113: =_xlfn.NORM.S.INV(C113) -> -1.247908922 | H113: =_xlfn.NORM.S.INV(D113) -> -0.0329284126 | I113: -0.03275758387 | J113: -0.6949677412 | K113: -0.6376055093 | L113: -0.1361227589 | M113: -0.05237457212 | N113: =$B$2+J113 -> 19.30503226 | O113: =$C$2+K113 -> 9.362394491 | P113: =$D$2+L113 -> 4.863877241 | Q113: 2.447625428
A114: 95 | B114: 0.8490311584 | C114: 0.2046833615 | D114: 0.3980822731 | E114: 0.6492132832 | F114: =_xlfn.NORM.S.INV(B114) -> 1.032287013 | G114: =_xlfn.NORM.S.INV(C114) -> -0.8250085741 | H114: =_xlfn.NORM.S.INV(D114) -> -0.258314047 | I114: 0.3831973624 | J114: 0.7226009091 | K114: -0.0162538606 | L114: 0.0383284593 | M114: 0.09380511939 | N114: =$B$2+J114 -> 20.72260091 | O114: =$C$2+K114 -> 9.983746139 | P114: =$D$2+L114 -> 5.038328459 | Q114: 2.593805119
A115: 96 | B115: 0.7921062146 | C115: 0.1441902427 | D115: 0.125959622 | E115: 0.6784461606 | F115: =_xlfn.NORM.S.INV(B115) -> 0.8137510704 | G115: =_xlfn.NORM.S.INV(C115) -> -1.061681093 | H115: =_xlfn.NORM.S.INV(D115) -> -1.145700145 | I115: 0.463358139 | J115: 0.5696257493 | K115: -0.1444376929 | L115: -0.1415399251 | M115: 0.09660966765 | N115: =$B$2+J115 -> 20.56962575 | O115: =$C$2+K115 -> 9.855562307 | P115: =$D$2+L115 -> 4.858460075 | Q115: 2.596609668
A116: 97 | B116: 0.03276553155 | C116: 0.5882338329 | D116: 0.6999058724 | E116: 0.1483467104 | F116: =_xlfn.NORM.S.INV(B116) -> -1.841617885 | G116: =_xlfn.NORM.S.INV(C116) -> 0.2230040759 | H116: =_xlfn.NORM.S.INV(D116) -> 0.5241298112 | I116: -1.043550466 | J116: -1.289132519 | K116: -0.370626988 | L116: -0.08875083693 | M116: -0.1930695897 | N116: =$B$2+J116 -> 18.71086748 | O116: =$C$2+K116 -> 9.629373012 | P116: =$D$2+L116 -> 4.911249163 | Q116: 2.30693041
A117: 98 | B117: 0.3609746507 | C117: 0.6019562751 | D117: 0.4579915533 | E117: 0.6457537841 | F117: =_xlfn.NORM.S.INV(B117) -> -0.3558548078 | G117: =_xlfn.NORM.S.INV(C117) -> 0.2584139522 | H117: =_xlfn.NORM.S.INV(D117) -> -0.1054949125 | I117: 0.3738815658 | J117: -0.2490983655 | K117: -0.002712689164 | L117: -0.04720695998 | M117: 0.0113671471 | N117: =$B$2+J117 -> 19.75090163 | O117: =$C$2+K117 -> 9.997287311 | P117: =$D$2+L117 -> 4.95279304 | Q117: 2.511367147
A118: 99 | B118: 0.1423846726 | C118: 0.3807772363 | D118: 0.6462240649 | E118: 0.8440327858 | F118: =_xlfn.NORM.S.INV(B118) -> -1.069666734 | G118: =_xlfn.NORM.S.INV(C118) -> -0.3034401226 | H118: =_xlfn.NORM.S.INV(D118) -> 0.3751460238 | I118: 1.011171344 | J118: -0.7487667138 | K118: -0.3538208554 | L118: -0.05025264799 | M118: 0.02318372885 | N118: =$B$2+J118 -> 19.25123329 | O118: =$C$2+K118 -> 9.646179145 | P118: =$D$2+L118 -> 4.949747352 | Q118: 2.523183729
A119: 100 | B119: 0.6836278618 | C119: 0.4835357442 | D119: 0.9400849773 | E119: 0.8458981444 | F119: =_xlfn.NORM.S.INV(B119) -> 0.4778678344 | G119: =_xlfn.NORM.S.INV(C119) -> -0.04128149121 | H119: =_xlfn.NORM.S.INV(D119) -> 1.555487349 | I119: 1.018998432 | J119: 0.3345074841 | K119: 0.1014782031 | L119: 0.3133652777 | M119: 0.09828032011 | N119: =$B$2+J119 -> 20.33450748 | O119: =$C$2+K119 -> 10.1014782 | P119: =$D$2+L119 -> 5.313365278 | Q119: 2.59828032
A120: 101 | B120: 0.2631341551 | C120: 0.8208704954 | D120: 0.4994534091 | E120: 0.6913288059 | F120: =_xlfn.NORM.S.INV(B120) -> -0.6337127383 | G120: =_xlfn.NORM.S.INV(C120) -> 0.9186875778 | H120: =_xlfn.NORM.S.INV(D120) -> -0.001370100652 | I120: 0.4996204037 | J120: -0.4435989168 | K120: 0.1418889677 | L120: -0.04063891964 | M120: 0.003194445395 | N120: =$B$2+J120 -> 19.55640108 | O120: =$C$2+K120 -> 10.14188897 | P120: =$D$2+L120 -> 4.95936108 | Q120: 2.503194445
A121: 102 | B121: 0.6639062807 | C121: 0.2600183322 | D121: 0.7410129865 | E121: 0.2164281049 | F121: =_xlfn.NORM.S.INV(B121) -> 0.4231477872 | G121: =_xlfn.NORM.S.INV(C121) -> -0.6432888894 | H121: =_xlfn.NORM.S.INV(D121) -> 0.6464715333 | I121: -0.7843134492 | J121: 0.296203451 | K121: -0.1042969757 | L121: 0.1370377773 | M121: -0.04473874971 | N121: =$B$2+J121 -> 20.29620345 | O121: =$C$2+K121 -> 9.895703024 | P121: =$D$2+L121 -> 5.137037777 | Q121: 2.45526125
A122: 103 | B122: 0.3509759996 | C122: 0.005473424067 | D122: 0.8239652932 | E122: 0.6464829226 | F122: =_xlfn.NORM.S.INV(B122) -> -0.3826868049 | G122: =_xlfn.NORM.S.INV(C122) -> -2.544390968 | H122: =_xlfn.NORM.S.INV(D122) -> 0.930582803 | I122: 0.3758422782 | J122: -0.2678807634 | K122: -0.9060499429 | L122: 0.05762343775 | M122: 0.0120637857 | N122: =$B$2+J122 -> 19.73211924 | O122: =$C$2+K122 -> 9.093950057 | P122: =$D$2+L122 -> 5.057623438 | Q122: 2.512063786
A123: 104 | B123: 0.6620209427 | C123: 0.5185628843 | D123: 0.134365955 | E123: 0.4136474819 | F123: =_xlfn.NORM.S.INV(B123) -> 0.4179849586 | G123: =_xlfn.NORM.S.INV(C123) -> 0.04654705362 | H123: =_xlfn.NORM.S.INV(D123) -> -1.105987546 | I123: -0.2181721753 | J123: 0.292589471 | K123: 0.1152114472 | L123: -0.1466040931 | M123: 0.01377473912 | N123: =$B$2+J123 -> 20.29258947 | O123: =$C$2+K123 -> 10.11521145 | P123: =$D$2+L123 -> 4.853395907 | Q123: 2.513774739
A124: 105 | B124: 0.004940439854 | C124: 0.4773813888 | D124: 0.6470995164 | E124: 0.6515101763 | F124: =_xlfn.NORM.S.INV(B124) -> -2.579970355 | G124: =_xlfn.NORM.S.INV(C124) -> -0.05672685949 | H124: =_xlfn.NORM.S.INV(D124) -> 0.3775014766 | I124: 0.3894008445 | J124: -1.805979248 | K124: -0.6373454802 | L124: -0.1947114539 | M124: -0.1124518323 | N124: =$B$2+J124 -> 18.19402075 | O124: =$C$2+K124 -> 9.36265452 | P124: =$D$2+L124 -> 4.805288546 | Q124: 2.387548168
A125: 106 | B125: 0.2917904069 | C125: 0.3621586311 | D125: 0.037419556 | E125: 0.2463780327 | F125: =_xlfn.NORM.S.INV(B125) -> -0.5481617934 | G125: =_xlfn.NORM.S.INV(C125) -> -0.3526947946 | H125: =_xlfn.NORM.S.INV(D125) -> -1.781449107 | I125: -0.6859318803 | J125: -0.3837132554 | K125: -0.2444211647 | L125: -0.3689739261 | M125: -0.07116123354 | N125: =$B$2+J125 -> 19.61628674 | O125: =$C$2+K125 -> 9.755578835 | P125: =$D$2+L125 -> 4.631026074 | Q125: 2.428838766
A126: 107 | B126: 0.4055751117 | C126: 0.1804315377 | D126: 0.2136761086 | E126: 0.9440489076 | F126: =_xlfn.NORM.S.INV(B126) -> -0.2389424306 | G126: =_xlfn.NORM.S.INV(C126) -> -0.9137217442 | H126: =_xlfn.NORM.S.INV(D126) -> -0.7937307116 | I126: 1.589701148 | J126: -0.1672597014 | K126: -0.3497371415 | L126: -0.1827827306 | M126: 0.1287868109 | N126: =$B$2+J126 -> 19.8327403 | O126: =$C$2+K126 -> 9.650262859 | P126: =$D$2+L126 -> 4.817217269 | Q126: 2.628786811
A127: 108 | B127: 0.4004037119 | C127: 0.3744637414 | D127: 0.1830014765 | E127: 0.1467119508 | F127: =_xlfn.NORM.S.INV(B127) -> -0.2523022827 | G127: =_xlfn.NORM.S.INV(C127) -> -0.3200538851 | H127: =_xlfn.NORM.S.INV(D127) -> -0.9039857586 | I127: -1.050640133 | J127: -0.1766115979 | K127: -0.1629697911 | L127: -0.1881747344 | M127: -0.09249185965 | N127: =$B$2+J127 -> 19.8233884 | O127: =$C$2+K127 -> 9.837030209 | P127: =$D$2+L127 -> 4.811825266 | Q127: 2.40750814
A128: 109 | B128: 0.4293392123 | C128: 0.9335768607 | D128: 0.444122083 | E128: 0.1714327795 | F128: =_xlfn.NORM.S.INV(B128) -> -0.1780567283 | G128: =_xlfn.NORM.S.INV(C128) -> 1.502971946 | H128: =_xlfn.NORM.S.INV(D128) -> -0.1405263104 | I128: -0.9485185005 | J128: -0.1246397098 | K128: 0.4382174078 | L128: -0.004317583803 | M128: -0.09302985459 | N128: =$B$2+J128 -> 19.87536029 | O128: =$C$2+K128 -> 10.43821741 | P128: =$D$2+L128 -> 4.995682416 | Q128: 2.406970145
A129: 110 | B129: 0.933988783 | C129: 0.743616263 | D129: 0.05130378049 | E129: 0.599822284 | F129: =_xlfn.NORM.S.INV(B129) -> 1.506174304 | G129: =_xlfn.NORM.S.INV(C129) -> 0.6545345522 | H129: =_xlfn.NORM.S.INV(D129) -> -1.632341521 | I129: 0.252887134 | J129: 1.054322013 | K129: 0.5709328897 | L129: -0.1128025425 | M129: 0.1147749941 | N129: =$B$2+J129 -> 21.05432201 | O129: =$C$2+K129 -> 10.57093289 | P129: =$D$2+L129 -> 4.887197458 | Q129: 2.614774994
A130: 111 | B130: 0.7765372158 | C130: 0.9153936671 | D130: 0.7551317833 | E130: 0.8967391096 | F130: =_xlfn.NORM.S.INV(B130) -> 0.760550545 | G130: =_xlfn.NORM.S.INV(C130) -> 1.374738064 | H130: =_xlfn.NORM.S.INV(D130) -> 0.6907280898 | I130: 1.263187564 | J130: 0.5323853815 | K130: 0.6224483114 | L130: 0.2288143007 | M130: 0.1358875944 | N130: =$B$2+J130 -> 20.53238538 | O130: =$C$2+K130 -> 10.62244831 | P130: =$D$2+L130 -> 5.228814301 | Q130: 2.635887594
A131: 112 | B131: 0.9587147179 | C131: 0.5006746878 | D131: 0.002462378322 | E131: 0.8435977648 | F131: =_xlfn.NORM.S.INV(B131) -> 1.735961941 | G131: =_xlfn.NORM.S.INV(C131) -> 0.001691192396 | H131: =_xlfn.NORM.S.INV(D131) -> -2.811914668 | I131: 1.009354877 | J131: 1.215173359 | K131: 0.4171720475 | L131: -0.3083237001 | M131: 0.2023477602 | N131: =$B$2+J131 -> 21.21517336 | O131: =$C$2+K131 -> 10.41717205 | P131: =$D$2+L131 -> 4.6916763 | Q131: 2.70234776
A132: 113 | B132: 0.1935014055 | C132: 0.2199277376 | D132: 0.4335702244 | E132: 0.737700011 | F132: =_xlfn.NORM.S.INV(B132) -> -0.8650655514 | G132: =_xlfn.NORM.S.INV(C132) -> -0.7724372897 | H132: =_xlfn.NORM.S.INV(D132) -> -0.1672918089 | I132: 0.6362707319 | J132: -0.6055458859 | K132: -0.454795665 | L132: -0.1344913034 | M132: 0.009518933402 | N132: =$B$2+J132 -> 19.39445411 | O132: =$C$2+K132 -> 9.545204335 | P132: =$D$2+L132 -> 4.865508697 | Q132: 2.509518933
A133: 114 | B133: 0.1575835866 | C133: 0.2924217702 | D133: 0.6854903666 | E133: 0.1576608206 | F133: =_xlfn.NORM.S.INV(B133) -> -1.004438765 | G133: =_xlfn.NORM.S.INV(C133) -> -0.5463235654 | H133: =_xlfn.NORM.S.INV(D133) -> 0.4831077005 | I133: -1.004118205 | J133: -0.7031071352 | K133: -0.4158888444 | L133: -0.03129730573 | M133: -0.1405291954 | N133: =$B$2+J133 -> 19.29689286 | O133: =$C$2+K133 -> 9.584111156 | P133: =$D$2+L133 -> 4.968702694 | Q133: 2.359470805
A134: 115 | B134: 0.1635995829 | C134: 0.229128164 | D134: 0.3111662613 | E134: 0.5675348361 | F134: =_xlfn.NORM.S.INV(B134) -> -0.9797710088 | G134: =_xlfn.NORM.S.INV(C134) -> -0.7417211083 | H134: =_xlfn.NORM.S.INV(D134) -> -0.4925472577 | I134: 0.1701014823 | J134: -0.6858397062 | K134: -0.4724957968 | L134: -0.2009427286 | M134: -0.03294146446 | N134: =$B$2+J134 -> 19.31416029 | O134: =$C$2+K134 -> 9.527504203 | P134: =$D$2+L134 -> 4.799057271 | Q134: 2.467058536
A135: 116 | B135: 0.9974357477 | C135: 0.385821086 | D135: 0.6214493969 | E135: 0.004445929492 | F135: =_xlfn.NORM.S.INV(B135) -> 2.798849426 | G135: =_xlfn.NORM.S.INV(C135) -> -0.2902275356 | H135: =_xlfn.NORM.S.INV(D135) -> 0.3092896463 | I135: -2.616184141 | J135: 1.959194598 | K135: 0.5788510509 | L135: 0.3256414996 | M135: -0.0647291558 | N135: =$B$2+J135 -> 21.9591946 | O135: =$C$2+K135 -> 10.57885105 | P135: =$D$2+L135 -> 5.3256415 | Q135: 2.435270844
A136: 117 | B136: 0.824084896 | C136: 0.4347351079 | D136: 0.7728283853 | E136: 0.3694555769 | F136: =_xlfn.NORM.S.INV(B136) -> 0.931045153 | G136: =_xlfn.NORM.S.INV(C136) -> -0.1643314614 | H136: =_xlfn.NORM.S.INV(D136) -> 0.7481938675 | I136: -0.3332956087 | J136: 0.6517316071 | K136: 0.1708647691 | L136: 0.2172366576 | M136: 0.01801200274 | N136: =$B$2+J136 -> 20.65173161 | O136: =$C$2+K136 -> 10.17086477 | P136: =$D$2+L136 -> 5.217236658 | Q136: 2.518012003
A137: 118 | B137: 0.3438797538 | C137: 0.4466641436 | D137: 0.6490233283 | E137: 0.2131809487 | F137: =_xlfn.NORM.S.INV(B137) -> -0.401897439 | G137: =_xlfn.NORM.S.INV(C137) -> -0.1340939454 | H137: =_xlfn.NORM.S.INV(D137) -> 0.3826849922 | I137: -0.7954326095 | J137: -0.2813282073 | K137: -0.1393654479 | L137: 0.02205011513 | M137: -0.09078457764 | N137: =$B$2+J137 -> 19.71867179 | O137: =$C$2+K137 -> 9.860634552 | P137: =$D$2+L137 -> 5.022050115 | Q137: 2.409215422
A138: 119 | B138: 0.3329556697 | C138: 0.5754065619 | D138: 0.7326563072 | E138: 0.1756798977 | F138: =_xlfn.NORM.S.INV(B138) -> -0.4317662115 | G138: =_xlfn.NORM.S.INV(C138) -> 0.1901560161 | H138: =_xlfn.NORM.S.INV(D138) -> 0.6208666198 | I138: -0.9319549736 | J138: -0.3022363481 | K138: -0.04277396562 | L138: 0.06799381788 | M138: -0.1069327328 | N138: =$B$2+J138 -> 19.69776365 | O138: =$C$2+K138 -> 9.957226034 | P138: =$D$2+L138 -> 5.067993818 | Q138: 2.393067267
A139: 120 | B139: 0.1061394148 | C139: 0.06438630197 | D139: 0.5678296549 | E139: 0.1722459184 | F139: =_xlfn.NORM.S.INV(B139) -> -1.247323703 | G139: =_xlfn.NORM.S.INV(C139) -> -1.518959844 | H139: =_xlfn.NORM.S.INV(D139) -> 0.1708513003 | I139: -0.945327238 | J139: -0.8731265923 | K139: -0.7854248389 | L139: -0.1334224536 | M139: -0.142797152 | N139: =$B$2+J139 -> 19.12687341 | O139: =$C$2+K139 -> 9.214575161 | P139: =$D$2+L139 -> 4.866577546 | Q139: 2.357202848
A140: 121 | B140: 0.7079360368 | C140: 0.6212347466 | D140: 0.9751369593 | E140: 0.8353979158 | F140: =_xlfn.NORM.S.INV(B140) -> 0.5473651013 | G140: =_xlfn.NORM.S.INV(C140) -> 0.3087252866 | H140: =_xlfn.NORM.S.INV(D140) -> 1.96231277 | I140: 0.9757181238 | J140: 0.3831555709 | K140: 0.230159716 | L140: 0.3987950511 | M140: 0.09385870508 | N140: =$B$2+J140 -> 20.38315557 | O140: =$C$2+K140 -> 10.23015972 | P140: =$D$2+L140 -> 5.398795051 | Q140: 2.593858705
A141: 122 | B141: 0.9924822051 | C141: 0.7199792481 | D141: 0.4401038243 | E141: 0.9600933729 | F141: =_xlfn.NORM.S.INV(B141) -> 2.431520686 | G141: =_xlfn.NORM.S.INV(C141) -> 0.5827798612 | H141: =_xlfn.NORM.S.INV(D141) -> -0.1507059892 | I141: 1.751770642 | J141: 1.702064481 | K141: 0.7700545203 | L141: 0.2318905586 | M141: 0.2782307537 | N141: =$B$2+J141 -> 21.70206448 | O141: =$C$2+K141 -> 10.77005452 | P141: =$D$2+L141 -> 5.231890559 | Q141: 2.778230754
A142: 123 | B142: 0.08073692986 | C142: 0.2025897422 | D142: 0.2487602474 | E142: 0.8951188711 | F142: =_xlfn.NORM.S.INV(B142) -> -1.400131781 | G142: =_xlfn.NORM.S.INV(C142) -> -0.8324065887 | H142: =_xlfn.NORM.S.INV(D142) -> -0.6783962363 | I142: 1.254219434 | J142: -0.9800922465 | K142: -0.6024017358 | L142: -0.2771004577 | M142: 0.03581578125 | N142: =$B$2+J142 -> 19.01990775 | O142: =$C$2+K142 -> 9.397598264 | P142: =$D$2+L142 -> 4.722899542 | Q142: 2.535815781
A143: 124 | B143: 0.3809043431 | C143: 0.7763948571 | D143: 0.7710732882 | E143: 0.201564709 | F143: =_xlfn.NORM.S.INV(B143) -> -0.3031065192 | G143: =_xlfn.NORM.S.INV(C143) -> 0.7600741124 | H143: =_xlfn.NORM.S.INV(D143) -> 0.7423861252 | I143: -0.8360453021 | J143: -0.2121745634 | K143: 0.1704781514 | L143: 0.1159361828 | M143: -0.09502750973 | N143: =$B$2+J143 -> 19.78782544 | O143: =$C$2+K143 -> 10.17047815 | P143: =$D$2+L143 -> 5.115936183 | Q143: 2.40497249
A144: 125 | B144: 0.6752056597 | C144: 0.1159544419 | D144: 0.6267710704 | E144: 0.6991088576 | F144: =_xlfn.NORM.S.INV(B144) -> 0.4543336769 | G144: =_xlfn.NORM.S.INV(C144) -> -1.195456086 | H144: =_xlfn.NORM.S.INV(D144) -> 0.3233134628 | I144: 0.5218392128 | J144: 0.3180335739 | K144: -0.273505865 | L144: 0.07096289307 | M144: 0.07014582408 | N144: =$B$2+J144 -> 20.31803357 | O144: =$C$2+K144 -> 9.726494135 | P144: =$D$2+L144 -> 5.070962893 | Q144: 2.570145824
A145: 126 | B145: 0.6362344401 | C145: 0.831509887 | D145: 0.9736355417 | E145: 0.1360853134 | F145: =_xlfn.NORM.S.INV(B145) -> 0.3484115632 | G145: =_xlfn.NORM.S.INV(C145) -> 0.9601490084 | H145: =_xlfn.NORM.S.INV(D145) -> 1.9371344 | I145: -1.098077552 | J145: 0.2438880942 | K145: 0.3908664579 | L145: 0.3908697178 | M145: -0.09150309981 | N145: =$B$2+J145 -> 20.24388809 | O145: =$C$2+K145 -> 10.39086646 | P145: =$D$2+L145 -> 5.390869718 | Q145: 2.4084969
A146: 127 | B146: 0.7786648837 | C146: 0.7331811502 | D146: 0.1506085825 | E146: 0.7773383456 | F146: =_xlfn.NORM.S.INV(B146) -> 0.7676919286 | G146: =_xlfn.NORM.S.INV(C146) -> 0.6224626445 | H146: =_xlfn.NORM.S.INV(D146) -> -1.033826747 | I146: 0.7632349164 | J146: 0.5373843501 | K146: 0.3834341091 | L146: -0.08486714553 | M146: 0.1117411349 | N146: =$B$2+J146 -> 20.53738435 | O146: =$C$2+K146 -> 10.38343411 | P146: =$D$2+L146 -> 4.915132854 | Q146: 2.611741135
A147: 128 | B147: 0.08364547261 | C147: 0.09672774003 | D147: 0.3625316371 | E147: 0.6086358841 | F147: =_xlfn.NORM.S.INV(B147) -> -1.380961023 | G147: =_xlfn.NORM.S.INV(C147) -> -1.300424609 | H147: =_xlfn.NORM.S.INV(D147) -> -0.3516999818 | I147: 0.2757654372 | J147: -0.9666727163 | K147: -0.7475665205 | L147: -0.2308880944 | M147: -0.0452943481 | N147: =$B$2+J147 -> 19.03332728 | O147: =$C$2+K147 -> 9.25243348 | P147: =$D$2+L147 -> 4.769111906 | Q147: 2.454705652
A148: 129 | B148: 0.3821727119 | C148: 0.8789683354 | D148: 0.3063118508 | E148: 0.6432347539 | F148: =_xlfn.NORM.S.INV(B148) -> -0.2997794074 | G148: =_xlfn.NORM.S.INV(C148) -> 1.169845054 | H148: =_xlfn.NORM.S.INV(D148) -> -0.5063318585 | I148: 0.3671186826 | J148: -0.2098455852 | K148: 0.3024033594 | L148: -0.08751709494 | M148: 0.01376074589 | N148: =$B$2+J148 -> 19.79015441 | O148: =$C$2+K148 -> 10.30240336 | P148: =$D$2+L148 -> 4.912482905 | Q148: 2.513760746
A149: 130 | B149: 0.7978313993 | C149: 0.9623288239 | D149: 0.01609460974 | E149: 0.8177496855 | F149: =_xlfn.NORM.S.INV(B149) -> 0.8339002412 | G149: =_xlfn.NORM.S.INV(C149) -> 1.778374596 | H149: =_xlfn.NORM.S.INV(D149) -> -2.142052974 | I149: =_xlfn.NORM.S.INV(E149) -> 0.9068225766 | J149: 0.5837301688 | K149: 0.7692159285 | L149: -0.2392984907 | M149: 0.1320626039 | N149: =$B$2+J149 -> 20.58373017 | O149: =$C$2+K149 -> 10.76921593 | P149: =$D$2+L149 -> 4.760701509 | Q149: =$E$2+M149 -> 2.632062604
A150: =$A149+1 -> 131 | B150: 0.1652401708 | C150: 0.05276168084 | D150: 0.9675952492 | E150: 0.4138291154 | F150: =_xlfn.NORM.S.INV(B150) -> -0.9731468108 | G150: =_xlfn.NORM.S.INV(C150) -> -1.618646418 | H150: =_xlfn.NORM.S.INV(D150) -> 1.846569888 | I150: -0.2177059457 | J150: -0.6812027676 | K150: -0.7515220884 | L150: 0.1787212373 | M150: -0.08067976107 | N150: =$B$2+J150 -> 19.31879723 | O150: =$C$2+K150 -> 9.248477912 | P150: =$D$2+L150 -> 5.178721237 | Q150: 2.419320239
A151: 132 | B151: 0.1482642527 | C151: 0.5419124924 | D151: 0.2437248661 | E151: 0.03039015324 | F151: =_xlfn.NORM.S.INV(B151) -> -1.043906814 | G151: =_xlfn.NORM.S.INV(C151) -> 0.1052530517 | H151: =_xlfn.NORM.S.INV(D151) -> -0.6943707501 | I151: -1.875090266 | J151: -0.7307347696 | K151: -0.2168566587 | L151: -0.2207745016 | M151: -0.2077973257 | N151: =$B$2+J151 -> 19.26926523 | O151: =$C$2+K151 -> 9.783143341 | P151: =$D$2+L151 -> 4.779225498 | Q151: 2.292202674
A152: 133 | B152: 0.6816391319 | C152: 0.106507537 | D152: 0.4801376551 | E152: 0.9410906512 | F152: =_xlfn.NORM.S.INV(B152) -> 0.4722872971 | G152: =_xlfn.NORM.S.INV(C152) -> -1.245317477 | H152: =_xlfn.NORM.S.INV(D152) -> -0.04980810196 | I152: 1.563995192 | J152: 0.330601108 | K152: -0.2851526412 | L152: 0.007558684122 | M152: 0.1609098051 | N152: =$B$2+J152 -> 20.33060111 | O152: =$C$2+K152 -> 9.714847359 | P152: =$D$2+L152 -> 5.007558684 | Q152: 2.660909805
A153: 134 | B153: 0.1819493784 | C153: 0.1662813481 | D153: 0.89644999 | E153: 0.3676809768 | F153: =_xlfn.NORM.S.INV(B153) -> -0.9079611333 | G153: =_xlfn.NORM.S.INV(C153) -> -0.968964912 | H153: =_xlfn.NORM.S.INV(D153) -> 1.261579824 | I153: -0.3380016377 | J153: -0.6355727933 | K153: -0.5279794438 | L153: 0.1012145457 | M153: -0.08471898019 | N153: =$B$2+J153 -> 19.36442721 | O153: =$C$2+K153 -> 9.472020556 | P153: =$D$2+L153 -> 5.101214546 | Q153: 2.41528102
A154: 135 | B154: 0.2215157615 | C154: 0.3257280539 | D154: 0.2068254803 | E154: 0.5862553019 | F154: =_xlfn.NORM.S.INV(B154) -> -0.767084086 | G154: =_xlfn.NORM.S.INV(C154) -> -0.4517402647 | H154: =_xlfn.NORM.S.INV(D154) -> -0.8174856256 | I154: 0.2179226281 | J154: -0.5369588602 | K154: -0.3286570653 | L154: -0.2281189514 | M154: -0.01569453097 | N154: =$B$2+J154 -> 19.46304114 | O154: =$C$2+K154 -> 9.671342935 | P154: =$D$2+L154 -> 4.771881049 | Q154: 2.484305469
A155: 136 | B155: 0.3353911321 | C155: 0.4101024138 | D155: 0.8038677574 | E155: 0.2931912683 | F155: =_xlfn.NORM.S.INV(B155) -> -0.42507464 | G155: =_xlfn.NORM.S.INV(C155) -> -0.2272815387 | H155: =_xlfn.NORM.S.INV(D155) -> 0.8555179254 | I155: -0.5440856475 | J155: -0.297552248 | K155: -0.174748006 | L155: 0.09844626994 | M155: -0.0747205816 | N155: =$B$2+J155 -> 19.70244775 | O155: =$C$2+K155 -> 9.825251994 | P155: =$D$2+L155 -> 5.09844627 | Q155: 2.425279418
A156: 137 | B156: 0.9770679878 | C156: 0.09643446053 | D156: 0.904514859 | E156: 0.9005560721 | F156: =_xlfn.NORM.S.INV(B156) -> 1.996642574 | G156: =_xlfn.NORM.S.INV(C156) -> -1.30213886 | H156: =_xlfn.NORM.S.INV(D156) -> 1.30771415 | I156: 1.284726554 | J156: 1.397649802 | K156: 0.06250978264 | L156: 0.3912529913 | M156: 0.2106369748 | N156: =$B$2+J156 -> 21.3976498 | O156: =$C$2+K156 -> 10.06250978 | P156: =$D$2+L156 -> 5.391252991 | Q156: 2.710636975
A157: 138 | B157: 0.8558689523 | C157: 0.8371794392 | D157: 0.2400376964 | E157: 0.005101075579 | F157: =_xlfn.NORM.S.INV(B157) -> 1.061941827 | G157: =_xlfn.NORM.S.INV(C157) -> 0.9829315645 | H157: =_xlfn.NORM.S.INV(D157) -> -0.7061813084 | I157: -2.568901297 | J157: 0.7433592786 | K157: 0.569404139 | L157: 0.009727995499 | M157: -0.1527757827 | N157: =$B$2+J157 -> 20.74335928 | O157: =$C$2+K157 -> 10.56940414 | P157: =$D$2+L157 -> 5.009727995 | Q157: 2.347224217
A158: 139 | B158: 0.4077970228 | C158: 0.2379207704 | D158: 0.6638234881 | E158: 0.595627008 | F158: =_xlfn.NORM.S.INV(B158) -> -0.2332155319 | G158: =_xlfn.NORM.S.INV(C158) -> -0.7130068137 | H158: =_xlfn.NORM.S.INV(D158) -> 0.4229208312 | I158: 0.2420441103 | J158: -0.1632508723 | K158: -0.284133908 | L158: 0.03134190694 | M158: 0.006473336564 | N158: =$B$2+J158 -> 19.83674913 | O158: =$C$2+K158 -> 9.715866092 | P158: =$D$2+L158 -> 5.031341907 | Q158: 2.506473337
A159: 140 | B159: 0.4913721043 | C159: 0.7769732418 | D159: 0.2368579782 | E159: 0.2081687147 | F159: =_xlfn.NORM.S.INV(B159) -> -0.0216286134 | G159: =_xlfn.NORM.S.INV(C159) -> 0.7620108704 | H159: =_xlfn.NORM.S.INV(D159) -> -0.7164460702 | I159: -0.8127918145 | J159: -0.01514002938 | K159: 0.2386526113 | L159: -0.105911446 | M159: -0.06565322491 | N159: =$B$2+J159 -> 19.98485997 | O159: =$C$2+K159 -> 10.23865261 | P159: =$D$2+L159 -> 4.894088554 | Q159: 2.434346775
A160: 141 | B160: 0.5462189362 | C160: 0.7706148917 | D160: 0.04743528967 | E160: 0.09031054968 | F160: =_xlfn.NORM.S.INV(B160) -> 0.1161140832 | G160: =_xlfn.NORM.S.INV(C160) -> 0.7408733813 | H160: =_xlfn.NORM.S.INV(D160) -> -1.670246622 | I160: -1.338845118 | J160: 0.08127985821 | K160: 0.264946862 | L160: -0.2561470281 | M160: -0.09384942655 | N160: =$B$2+J160 -> 20.08127986 | O160: =$C$2+K160 -> 10.26494686 | P160: =$D$2+L160 -> 4.743852972 | Q160: 2.406150573
A161: 142 | B161: 0.8332481461 | C161: 0.7656419721 | D161: 0.03379902416 | E161: 0.9538868433 | F161: =_xlfn.NORM.S.INV(B161) -> 0.96708067 | G161: =_xlfn.NORM.S.INV(C161) -> 0.7245696955 | H161: =_xlfn.NORM.S.INV(D161) -> -1.827676958 | I161: 1.683769037 | J161: 0.676956469 | K161: 0.4639616634 | L161: -0.1984415212 | M161: 0.2052681827 | N161: =$B$2+J161 -> 20.67695647 | O161: =$C$2+K161 -> 10.46396166 | P161: =$D$2+L161 -> 4.801558479 | Q161: 2.705268183
A162: 143 | B162: 0.1678866083 | C162: 0.3078510901 | D162: 0.7789969797 | E162: 0.3902743255 | F162: =_xlfn.NORM.S.INV(B162) -> -0.962550365 | G162: =_xlfn.NORM.S.INV(C162) -> -0.5019507285 | H162: =_xlfn.NORM.S.INV(D162) -> 0.7688101196 | I162: -0.2786041195 | J162: -0.6737852555 | K162: -0.3916363207 | L162: 0.02297024979 | M162: -0.08049790782 | N162: =$B$2+J162 -> 19.32621474 | O162: =$C$2+K162 -> 9.608363679 | P162: =$D$2+L162 -> 5.02297025 | Q162: 2.419502092
A163: 144 | B163: 0.4402545592 | C163: 0.99725876 | D163: 0.1156255515 | E163: 0.9934700247 | F163: =_xlfn.NORM.S.INV(B163) -> -0.1503238485 | G163: =_xlfn.NORM.S.INV(C163) -> 2.777227445 | H163: =_xlfn.NORM.S.INV(D163) -> -1.19714228 | I163: 2.482130307 | J163: -0.105226694 | K163: 0.8526350588 | L163: -0.1507918855 | M163: 0.1972263332 | N163: =$B$2+J163 -> 19.89477331 | O163: =$C$2+K163 -> 10.85263506 | P163: =$D$2+L163 -> 4.849208115 | Q163: 2.697226333
A164: 145 | B164: 0.5006124802 | C164: 0.06753024623 | D164: 0.9234627622 | E164: 0.3649521294 | F164: =_xlfn.NORM.S.INV(B164) -> 0.001535260732 | G164: =_xlfn.NORM.S.INV(C164) -> -1.494440616 | H164: =_xlfn.NORM.S.INV(D164) -> 1.428755654 | I164: -0.3452528915 | J164: 0.001074682513 | K164: -0.4778525344 | L164: 0.2076812297 | M164: -0.03469986269 | N164: =$B$2+J164 -> 20.00107468 | O164: =$C$2+K164 -> 9.522147466 | P164: =$D$2+L164 -> 5.20768123 | Q164: 2.465300137
A165: 146 | B165: 0.2189676808 | C165: 0.1044377783 | D165: 0.2466325522 | E165: 0.6039375618 | F165: =_xlfn.NORM.S.INV(B165) -> -0.7756843855 | G165: =_xlfn.NORM.S.INV(C165) -> -1.256663372 | H165: =_xlfn.NORM.S.INV(D165) -> -0.6851249069 | I165: 0.2635523544 | J165: -0.5429790699 | K165: -0.5882965317 | L165: -0.2264154319 | M165: -0.01044654732 | N165: =$B$2+J165 -> 19.45702093 | O165: =$C$2+K165 -> 9.411703468 | P165: =$D$2+L165 -> 4.773584568 | Q165: 2.489553453
A166: 147 | B166: 0.05851856774 | C166: 0.6396712913 | D166: 0.639232975 | E166: 0.01502894679 | F166: =_xlfn.NORM.S.INV(B166) -> -1.567331888 | G166: =_xlfn.NORM.S.INV(C166) -> 0.3575803077 | H166: =_xlfn.NORM.S.INV(D166) -> 0.3564093208 | I166: -2.169326647 | J166: -1.097132322 | K166: -0.2617339547 | L166: -0.08670512353 | M166: -0.2705833357 | N166: =$B$2+J166 -> 18.90286768 | O166: =$C$2+K166 -> 9.738266045 | P166: =$D$2+L166 -> 4.913294876 | Q166: 2.229416664
A167: 148 | B167: 0.8252397576 | C167: 0.805847495 | D167: 0.106235318 | E167: 0.6849597218 | F167: =_xlfn.NORM.S.INV(B167) -> 0.935519799 | G167: =_xlfn.NORM.S.INV(C167) -> 0.8626953129 | H167: =_xlfn.NORM.S.INV(D167) -> -1.246800558 | I167: 0.4816134687 | J167: 0.6548638593 | K167: 0.5005872519 | L167: -0.09858225288 | M167: 0.0984357585 | N167: =$B$2+J167 -> 20.65486386 | O167: =$C$2+K167 -> 10.50058725 | P167: =$D$2+L167 -> 4.901417747 | Q167: 2.598435758
A168: 149 | B168: 0.05314293724 | C168: 0.1740094281 | D168: 0.4494478807 | E168: 0.01236308903 | F168: =_xlfn.NORM.S.INV(B168) -> -1.615114625 | G168: =_xlfn.NORM.S.INV(C168) -> -0.9384389909 | H168: =_xlfn.NORM.S.INV(D168) -> -0.1270563975 | I168: -2.245654011 | J168: -1.130580237 | K168: -0.687927987 | L168: -0.2067499038 | M168: -0.2707218343 | N168: =$B$2+J168 -> 18.86941976 | O168: =$C$2+K168 -> 9.312072013 | P168: =$D$2+L168 -> 4.793250096 | Q168: 2.229278166
A169: 150 | B169: 0.9377529118 | C169: 0.2791740475 | D169: 0.1820176764 | E169: 0.4524119382 | F169: =_xlfn.NORM.S.INV(B169) -> 1.536180259 | G169: =_xlfn.NORM.S.INV(C169) -> -0.585296906 | H169: =_xlfn.NORM.S.INV(D169) -> -0.9077026322 | I169: -0.1195698855 | J169: 1.075326181 | K169: 0.1813882521 | L169: -0.01659462795 | M169: 0.08420473849 | N169: =$B$2+J169 -> 21.07532618 | O169: =$C$2+K169 -> 10.18138825 | P169: =$D$2+L169 -> 4.983405372 | Q169: 2.584204738
A170: 151 | B170: 0.9332696227 | C170: 0.2197349546 | D170: 0.6688999881 | E170: 0.6071408232 | F170: =_xlfn.NORM.S.INV(B170) -> 1.500593419 | G170: =_xlfn.NORM.S.INV(C170) -> -0.7730886645 | H170: =_xlfn.NORM.S.INV(D170) -> 0.4368777294 | I170: 0.2718747151 | J170: 1.050415393 | K170: 0.1127540478 | L170: 0.2056129681 | M170: 0.1044203963 | N170: =$B$2+J170 -> 21.05041539 | O170: =$C$2+K170 -> 10.11275405 | P170: =$D$2+L170 -> 5.205612968 | Q170: 2.604420396
A171: 152 | B171: 0.5535951361 | C171: 0.004746661435 | D171: 0.7131269481 | E171: 0.3136847665 | F171: =_xlfn.NORM.S.INV(B171) -> 0.1347497618 | G171: =_xlfn.NORM.S.INV(C171) -> -2.593758193 | H171: =_xlfn.NORM.S.INV(D171) -> 0.5625430167 | I171: -0.4854325706 | J171: 0.09432483323 | K171: -0.7976626788 | L171: 0.04505089442 | M171: -0.02778227455 | N171: =$B$2+J171 -> 20.09432483 | O171: =$C$2+K171 -> 9.202337321 | P171: =$D$2+L171 -> 5.045050894 | Q171: 2.472217725
A172: 153 | B172: 0.493327904 | C172: 0.8348423986 | D172: 0.9077713381 | E172: 0.9537179911 | F172: =_xlfn.NORM.S.INV(B172) -> -0.01672524412 | G172: =_xlfn.NORM.S.INV(C172) -> 0.9734791802 | H172: =_xlfn.NORM.S.INV(D172) -> 1.327155275 | I172: 1.682024868 | J172: -0.01170767089 | K172: 0.3074992791 | L172: 0.2501388691 | M172: 0.1241955491 | N172: =$B$2+J172 -> 19.98829233 | O172: =$C$2+K172 -> 10.30749928 | P172: =$D$2+L172 -> 5.250138869 | Q172: 2.624195549
A173: 154 | B173: 0.587036997 | C173: 0.4842685837 | D173: 0.5995440996 | E173: 0.3805167557 | F173: =_xlfn.NORM.S.INV(B173) -> 0.2199295706 | G173: =_xlfn.NORM.S.INV(C173) -> -0.03944303784 | H173: =_xlfn.NORM.S.INV(D173) -> 0.2521672373 | I173: -0.3041238838 | J173: 0.1539506994 | K173: 0.04016132483 | L173: 0.06422834558 | M173: -0.01507576701 | N173: =$B$2+J173 -> 20.1539507 | O173: =$C$2+K173 -> 10.04016132 | P173: =$D$2+L173 -> 5.064228346 | Q173: 2.484924233
A174: 155 | B174: 0.4116522822 | C174: 0.1136199723 | D174: 0.1799000932 | E174: 0.5566447297 | F174: =_xlfn.NORM.S.INV(B174) -> -0.22329674 | G174: =_xlfn.NORM.S.INV(C174) -> -1.207499222 | H174: =_xlfn.NORM.S.INV(D174) -> -0.9157458965 | I174: 0.1424677635 | J174: -0.156307718 | K174: -0.4399909685 | L174: -0.2094760012 | M174: 0.01158921835 | N174: =$B$2+J174 -> 19.84369228 | O174: =$C$2+K174 -> 9.560009031 | P174: =$D$2+L174 -> 4.790523999 | Q174: 2.511589218
A175: 156 | B175: 0.7062211431 | C175: 0.9168428489 | D175: 0.3764347782 | E175: 0.4759728646 | F175: =_xlfn.NORM.S.INV(B175) -> 0.5423786073 | G175: =_xlfn.NORM.S.INV(C175) -> 1.38414421 | H175: =_xlfn.NORM.S.INV(D175) -> -0.3148578888 | I175: -0.06026355363 | J175: 0.3796650251 | K175: 0.5730970129 | L175: 0.03487482383 | M175: 0.02222009778 | N175: =$B$2+J175 -> 20.37966503 | O175: =$C$2+K175 -> 10.57309701 | P175: =$D$2+L175 -> 5.034874824 | Q175: 2.522220098
A176: 157 | B176: 0.732729672 | C176: 0.7105897089 | D176: 0.02329923658 | E176: 0.1571611925 | F176: =_xlfn.NORM.S.INV(B176) -> 0.6210896239 | G176: =_xlfn.NORM.S.INV(C176) -> 0.5551083054 | H176: =_xlfn.NORM.S.INV(D176) -> -1.989931579 | I176: -1.006193735 | J176: 0.4347627367 | K176: 0.3266961675 | L176: -0.2650876025 | M176: -0.03513679069 | N176: =$B$2+J176 -> 20.43476274 | O176: =$C$2+K176 -> 10.32669617 | P176: =$D$2+L176 -> 4.734912397 | Q176: 2.464863209
A177: 158 | B177: 0.5275324696 | C177: 0.6470369037 | D177: 0.884314748 | E177: 0.7421260547 | F177: =_xlfn.NORM.S.INV(B177) -> 0.06906854241 | G177: =_xlfn.NORM.S.INV(C177) -> 0.3773329442 | H177: =_xlfn.NORM.S.INV(D177) -> 1.196835947 | I177: 0.6499138201 | J177: 0.04834797968 | K177: 0.1373229923 | L177: 0.2214778592 | M177: 0.04652489668 | N177: =$B$2+J177 -> 20.04834798 | O177: =$C$2+K177 -> 10.13732299 | P177: =$D$2+L177 -> 5.221477859 | Q177: 2.546524897
A178: 159 | B178: 0.5517445221 | C178: 0.946151544 | D178: 0.9478918433 | E178: 0.1759063336 | F178: =_xlfn.NORM.S.INV(B178) -> 0.1300701128 | G178: =_xlfn.NORM.S.INV(C178) -> 1.608631638 | H178: =_xlfn.NORM.S.INV(D178) -> 1.624747773 | I178: -0.9310790645 | J178: 0.09104907896 | K178: 0.5459789511 | L178: 0.3317045705 | M178: -0.08951503801 | N178: =$B$2+J178 -> 20.09104908 | O178: =$C$2+K178 -> 10.54597895 | P178: =$D$2+L178 -> 5.331704571 | Q178: 2.410484962
A179: 160 | B179: 0.03858404731 | C179: 0.8044162514 | D179: 0.2214778493 | E179: 0.508717386 | F179: =_xlfn.NORM.S.INV(B179) -> -1.76735918 | G179: =_xlfn.NORM.S.INV(C179) -> 0.8575020232 | H179: =_xlfn.NORM.S.INV(D179) -> -0.767211631 | I179: 0.0218529854 | J179: -1.237151426 | K179: -0.1497655557 | L179: -0.286798441 | M179: -0.09231108309 | N179: =$B$2+J179 -> 18.76284857 | O179: =$C$2+K179 -> 9.850234444 | P179: =$D$2+L179 -> 4.713201559 | Q179: 2.407688917
A180: 161 | B180: 0.1506656765 | C180: 0.2469277381 | D180: 0.901175485 | E180: 0.3722022435 | F180: =_xlfn.NORM.S.INV(B180) -> -1.033582566 | G180: =_xlfn.NORM.S.INV(C180) -> -0.6841895561 | H180: =_xlfn.NORM.S.INV(D180) -> 1.288278513 | I180: -0.3260262601 | J180: -0.7235077965 | K180: -0.4670004739 | L180: 0.1003479415 | M180: -0.09192083501 | N180: =$B$2+J180 -> 19.2764922 | O180: =$C$2+K180 -> 9.532999526 | P180: =$D$2+L180 -> 5.100347942 | Q180: 2.408079165
A181: 162 | B181: 0.5545904216 | C181: 0.7320784683 | D181: 0.9707008388 | E181: 0.8615981846 | F181: =_xlfn.NORM.S.INV(B181) -> 0.1372677553 | G181: =_xlfn.NORM.S.INV(C181) -> 0.619111264 | H181: =_xlfn.NORM.S.INV(D181) -> 1.89119497 | I181: 1.087527774 | J181: 0.09608742869 | K181: 0.2310598658 | L181: 0.3533553751 | M181: 0.08000624974 | N181: =$B$2+J181 -> 20.09608743 | O181: =$C$2+K181 -> 10.23105987 | P181: =$D$2+L181 -> 5.353355375 | Q181: 2.58000625
A182: 163 | B182: 0.4537316339 | C182: 0.4517052875 | D182: 0.4022166756 | E182: 0.5473286378 | F182: =_xlfn.NORM.S.INV(B182) -> -0.1162388245 | G182: =_xlfn.NORM.S.INV(C182) -> -0.121354095 | H182: =_xlfn.NORM.S.INV(D182) -> -0.2476136464 | I182: 0.1189149665 | J182: -0.08136717715 | K182: -0.06673062827 | L182: -0.05709871381 | M182: 0.005966859552 | N182: =$B$2+J182 -> 19.91863282 | O182: =$C$2+K182 -> 9.933269372 | P182: =$D$2+L182 -> 4.942901286 | Q182: 2.50596686
A183: 164 | B183: 0.8092942232 | C183: 0.1039303509 | D183: 0.6923444691 | E183: 0.3206215881 | F183: =_xlfn.NORM.S.INV(B183) -> 0.87529842 | G183: =_xlfn.NORM.S.INV(C183) -> -1.259469772 | H183: =_xlfn.NORM.S.INV(D183) -> 0.502506812 | I183: -0.4659613357 | J183: 0.612708894 | K183: -0.1929587062 | L183: 0.1421727653 | M183: 0.01005356882 | N183: =$B$2+J183 -> 20.61270889 | O183: =$C$2+K183 -> 9.807041294 | P183: =$D$2+L183 -> 5.142172765 | Q183: 2.510053569
A184: 165 | B184: 0.30093343 | C184: 0.5161450074 | D184: 0.5872867387 | E184: 0.5357594903 | F184: =_xlfn.NORM.S.INV(B184) -> -0.5217177562 | G184: =_xlfn.NORM.S.INV(C184) -> 0.04048058514 | H184: =_xlfn.NORM.S.INV(D184) -> 0.2205709498 | I184: 0.08975611881 | J184: -0.3652024293 | K184: -0.1122584742 | L184: -0.0133539002 | M184: -0.02320377034 | N184: =$B$2+J184 -> 19.63479757 | O184: =$C$2+K184 -> 9.887741526 | P184: =$D$2+L184 -> 4.9866461 | Q184: 2.47679623
A185: 166 | B185: 0.7085941794 | C185: 0.9612911412 | D185: 0.5172372347 | E185: 0.1212947975 | F185: =_xlfn.NORM.S.INV(B185) -> 0.5492824329 | G185: =_xlfn.NORM.S.INV(C185) -> 1.765869664 | H185: =_xlfn.NORM.S.INV(D185) -> 0.04322079245 | I185: -1.168538559 | J185: 0.384497703 | K185: 0.6969060764 | L185: 0.1064830287 | M185: -0.07378751921 | N185: =$B$2+J185 -> 20.3844977 | O185: =$C$2+K185 -> 10.69690608 | P185: =$D$2+L185 -> 5.106483029 | Q185: 2.426212481
A186: 167 | B186: 0.01830007654 | C186: 0.08793452042 | D186: 0.9755667975 | E186: 0.4402638127 | F186: =_xlfn.NORM.S.INV(B186) -> -2.090196486 | G186: =_xlfn.NORM.S.INV(C186) -> -1.353584293 | H186: =_xlfn.NORM.S.INV(D186) -> 1.969755446 | I186: -0.1503003898 | J186: -1.46313754 | K186: -0.9347941304 | L186: 0.09475682755 | M186: -0.1385256529 | N186: =$B$2+J186 -> 18.53686246 | O186: =$C$2+K186 -> 9.06520587 | P186: =$D$2+L186 -> 5.094756828 | Q186: 2.361474347
A187: 168 | B187: 0.4375000108 | C187: 0.7746516398 | D187: 0.7622544815 | E187: 0.4529594375 | F187: =_xlfn.NORM.S.INV(B187) -> -0.1573106572 | G187: =_xlfn.NORM.S.INV(C187) -> 0.7542539962 | H187: =_xlfn.NORM.S.INV(D187) -> 0.7135733575 | I187: -0.1181877766 | J187: -0.11011746 | K187: 0.203606721 | L187: 0.1254317577 | M187: -0.02714823139 | N187: =$B$2+J187 -> 19.88988254 | O187: =$C$2+K187 -> 10.20360672 | P187: =$D$2+L187 -> 5.125431758 | Q187: 2.472851769
A188: 169 | B188: 0.0004772341911 | C188: 0.9590751334 | D188: 0.239885074 | E188: 0.2085297567 | F188: =_xlfn.NORM.S.INV(B188) -> -3.303614926 | G188: =_xlfn.NORM.S.INV(C188) -> 1.740052879 | H188: =_xlfn.NORM.S.INV(D188) -> -0.7066722988 | I188: -0.8115332376 | J188: -2.312530448 | K188: -0.2360506609 | L188: -0.4079838026 | M188: -0.2498058253 | N188: =$B$2+J188 -> 17.68746955 | O188: =$C$2+K188 -> 9.763949339 | P188: =$D$2+L188 -> 4.592016197 | Q188: 2.250194175
A189: 170 | B189: 0.1392900125 | C189: 0.4161569482 | D189: 0.487233983 | E189: 0.2728101847 | F189: =_xlfn.NORM.S.INV(B189) -> -1.08351471 | G189: =_xlfn.NORM.S.INV(C189) -> -0.2117348522 | H189: =_xlfn.NORM.S.INV(D189) -> -0.03200512225 | I189: -0.6043358601 | J189: -0.7584602973 | K189: -0.3277986832 | L189: -0.1191305203 | M189: -0.1087135023 | N189: =$B$2+J189 -> 19.2415397 | O189: =$C$2+K189 -> 9.672201317 | P189: =$D$2+L189 -> 4.88086948 | Q189: 2.391286498
A190: 171 | B190: 0.3423015719 | C190: 0.2590652826 | D190: 0.7440300655 | E190: 0.2867520539 | F190: =_xlfn.NORM.S.INV(B190) -> -0.4061898059 | G190: =_xlfn.NORM.S.INV(C190) -> -0.6462297657 | H190: =_xlfn.NORM.S.INV(D190) -> 0.6558201203 | I190: -0.5628983442 | J190: -0.2843328641 | K190: -0.3042790785 | L190: 0.05563284388 | M190: -0.07203433993 | N190: =$B$2+J190 -> 19.71566714 | O190: =$C$2+K190 -> 9.695720922 | P190: =$D$2+L190 -> 5.055632844 | Q190: 2.42796566
A191: 172 | B191: 0.8626182694 | C191: 0.9800482789 | D191: 0.01367533313 | E191: 0.8838400985 | F191: =_xlfn.NORM.S.INV(B191) -> 1.092158452 | G191: =_xlfn.NORM.S.INV(C191) -> 2.054747058 | H191: =_xlfn.NORM.S.INV(D191) -> -2.206476323 | I191: 1.194404434 | J191: 0.7645109161 | K191: 0.9196370871 | L191: -0.2176055201 | M191: 0.1696363423 | N191: =$B$2+J191 -> 20.76451092 | O191: =$C$2+K191 -> 10.91963709 | P191: =$D$2+L191 -> 4.78239448 | Q191: 2.669636342
A192: 173 | B192: 0.2266341088 | C192: 0.4992342105 | D192: 0.918867357 | E192: 0.9389731633 | F192: =_xlfn.NORM.S.INV(B192) -> -0.7499775637 | G192: =_xlfn.NORM.S.INV(C192) -> -0.001919550913 | H192: =_xlfn.NORM.S.INV(D192) -> 1.39749328 | I192: 1.54621077 | J192: -0.5249842946 | K192: -0.1806088716 | L192: 0.1644846031 | M192: 0.07567092748 | N192: =$B$2+J192 -> 19.47501571 | O192: =$C$2+K192 -> 9.819391128 | P192: =$D$2+L192 -> 5.164484603 | Q192: 2.575670927
A193: 174 | B193: 0.6790921982 | C193: 0.4163337063 | D193: 0.7087023204 | E193: 0.1290400629 | F193: =_xlfn.NORM.S.INV(B193) -> 0.4651617842 | G193: =_xlfn.NORM.S.INV(C193) -> -0.2112817633 | H193: =_xlfn.NORM.S.INV(D193) -> 0.5495976672 | I193: -1.130940523 | J193: 0.3256132489 | K193: 0.04402866395 | L193: 0.1354351745 | M193: -0.07203291891 | N193: =$B$2+J193 -> 20.32561325 | O193: =$C$2+K193 -> 10.04402866 | P193: =$D$2+L193 -> 5.135435174 | Q193: 2.427967081
A194: 175 | B194: 0.8786383488 | C194: 0.543459587 | D194: 0.62187146 | E194: 0.3284710347 | F194: =_xlfn.NORM.S.INV(B194) -> 1.168206938 | G194: =_xlfn.NORM.S.INV(C194) -> 0.1091533935 | H194: =_xlfn.NORM.S.INV(D194) -> 0.3103996239 | I194: -0.4441390304 | J194: 0.8177448569 | K194: 0.3152987511 | L194: 0.1727520242 | M194: 0.02441928309 | N194: =$B$2+J194 -> 20.81774486 | O194: =$C$2+K194 -> 10.31529875 | P194: =$D$2+L194 -> 5.172752024 | Q194: 2.524419283
A195: 176 | B195: 0.3748946851 | C195: 0.8713829134 | D195: 0.6518005176 | E195: 0.6912412589 | F195: =_xlfn.NORM.S.INV(B195) -> -0.3189171088 | G195: =_xlfn.NORM.S.INV(C195) -> 1.132952566 | H195: =_xlfn.NORM.S.INV(D195) -> 0.3901860655 | I195: 0.4993717995 | J195: -0.2232419762 | K195: 0.2860047151 | L195: 0.06330999491 | M195: 0.01647139101 | N195: =$B$2+J195 -> 19.77675802 | O195: =$C$2+K195 -> 10.28600472 | P195: =$D$2+L195 -> 5.063309995 | Q195: 2.516471391
A196: 177 | B196: 0.7857681768 | C196: 0.8835386873 | D196: 0.9091967268 | E196: 0.2941446211 | F196: =_xlfn.NORM.S.INV(B196) -> 0.7918234169 | G196: =_xlfn.NORM.S.INV(C196) -> 1.192864038 | H196: =_xlfn.NORM.S.INV(D196) -> 1.335824795 | I196: -0.541316801 | J196: 0.5542763918 | K196: 0.5717541122 | L196: 0.3379643126 | M196: -0.01682771243 | N196: =$B$2+J196 -> 20.55427639 | O196: =$C$2+K196 -> 10.57175411 | P196: =$D$2+L196 -> 5.337964313 | Q196: 2.483172288
A197: 178 | B197: 0.5953890643 | C197: 0.3131246748 | D197: 0.7227959861 | E197: 0.8109885191 | F197: =_xlfn.NORM.S.INV(B197) -> 0.2414299899 | G197: =_xlfn.NORM.S.INV(C197) -> -0.4870126737 | H197: =_xlfn.NORM.S.INV(D197) -> 0.5911677517 | I197: 0.8815449022 | J197: 0.169000993 | K197: -0.09790085799 | L197: 0.1132938348 | M197: 0.08344738483 | N197: =$B$2+J197 -> 20.16900099 | O197: =$C$2+K197 -> 9.902099142 | P197: =$D$2+L197 -> 5.113293835 | Q197: 2.583447385
A198: 179 | B198: 0.1402690602 | C198: 0.1946128865 | D198: 0.4412787123 | E198: 0.6164590845 | F198: =_xlfn.NORM.S.INV(B198) -> -1.079111287 | G198: =_xlfn.NORM.S.INV(C198) -> -0.8610222784 | H198: =_xlfn.NORM.S.INV(D198) -> -0.1477280109 | I198: 0.2961941305 | J198: -0.7553779006 | K198: -0.5345138378 | L198: -0.1547572667 | M198: -0.03031778739 | N198: =$B$2+J198 -> 19.2446221 | O198: =$C$2+K198 -> 9.465486162 | P198: =$D$2+L198 -> 4.845242733 | Q198: 2.469682213
A199: 180 | B199: 0.4257289668 | C199: 0.04847658695 | D199: 0.4083276409 | E199: 0.5866760301 | F199: =_xlfn.NORM.S.INV(B199) -> -0.1872585332 | G199: =_xlfn.NORM.S.INV(C199) -> -1.659807553 | H199: =_xlfn.NORM.S.INV(D199) -> -0.23184902 | I199: 0.2190027059 | J199: -0.1310809733 | K199: -0.5760804648 | L199: -0.09995996416 | M199: 0.01601071369 | N199: =$B$2+J199 -> 19.86891903 | O199: =$C$2+K199 -> 9.423919535 | P199: =$D$2+L199 -> 4.900040036 | Q199: 2.516010714
A200: 181 | B200: 0.06354593147 | C200: 0.682488905 | D200: 0.2241015917 | E200: 0.7532616354 | F200: =_xlfn.NORM.S.INV(B200) -> -1.525670829 | G200: =_xlfn.NORM.S.INV(C200) -> 0.4746700196 | H200: =_xlfn.NORM.S.INV(D200) -> -0.7584139932 | I200: 0.6847895522 | J200: -1.06796958 | K200: -0.2142665926 | L200: -0.2706924908 | M200: -0.02261249024 | N200: =$B$2+J200 -> 18.93203042 | O200: =$C$2+K200 -> 9.785733407 | P200: =$D$2+L200 -> 4.729307509 | Q200: 2.47738751
... 1820 more rows
